Workbook

Sheet -- Trading Investments --
A2: م | C2: شراء | G2: إسترداد | K2: التكلفة الدفترية | L2: أرباح إسترداد | M2: التغير فى القيمة العادلة | O2: ربحية الوثيقة | Q2: رصيد | U2: البيـــــــان | V2: التاريخ | X2: م
C3: عدد الوثائق | D3: سعر الوثيقة | E3: قيمة | G3: عدد الوثائق | H3: سعر الوثيقة | I3: قيمة | Q3: عدد الوثائق | R3: متوسط السعر | S3: قيمة
A5: =IF(V5>0,ROW()-5,"") -> 0 | C5: 80 | D5: 319.179 | E5: =IF(C5>0,ROUND(C5*D5,2),"") -> 25534.32 | I5: =IF(G5>0,ROUND(G5*H5,2),"") ->  | K5: =IFERROR(IF(G5>0,ROUND(G5*R4,2),""),"") ->  | L5: =IFERROR(IF(G5>0,ROUND(I5-K5,2),""),"") ->  | M5: =IFERROR(IF(AND(V6="",$C$203>(SUM(S4,E5)-SUM(K5))/(SUM(Q4,C5)-SUM(G5)),V5>=DATE(YEAR($V$5),COLUMN($L$1)+1,0)),((SUM(Q4,C5)-SUM(G5))*$C$203)-((SUM(Q4,C5)-SUM(G5))*(R4)),""),"") ->  | O5: =IF(H5>0,ROUND(H5-R4,2),"") ->  | Q5: =C5-G5 -> 80 | R5: =IF(Q5>0,ROUND(S5/Q5,100),0) -> 319.179 | S5: =ROUND(SUM(E5,M5)-SUM(K5),100) -> 25534.32 | U5: رصيد أول المدة | V5: 2019-01-01 | X5: =IF($V5="","",IFERROR(IF(MONTH($V6)=MONTH($V5),$X4+0,1),1)) -> 0
A6: =IF(V6>0,ROW()-5,"") -> 1 | E6: =IF(C6>0,ROUND(C6*D6,2),"") ->  | G6: 1 | H6: 319.545 | I6: =IF(G6>0,ROUND(G6*H6,2),"") -> 319.55 | K6: =IFERROR(IF(G6>0,ROUND(G6*R5,2),""),"") -> 319.18 | L6: =IFERROR(IF(G6>0,ROUND(I6-K6,2),""),"") -> 0.37 | M6: =IFERROR(IF(AND(V7="",$C$203>(SUM(S5,E6)-SUM(K6))/(SUM(Q5,C6)-SUM(G6)),V6>=DATE(YEAR($V$5),COLUMN($L$1)+1,0)),((SUM(Q5,C6)-SUM(G6))*$C$203)-((SUM(Q5,C6)-SUM(G6))*(R5)),""),"") ->  | O6: =IF(H6>0,ROUND(H6-R5,2),"") -> 0.37 | Q6: =Q5+C6-G6 -> 79 | R6: =IF(Q6>0,ROUND(S6/Q6,100),0) -> 319.1789873 | S6: =ROUND(SUM(S5,E6,M6)-SUM(K6),100) -> 25215.14 | U6: =IF(C6>0,CONCATENATE("شراء ","","",C6," وثيقة"),IF(G6>0,CONCATENATE("إسترداد ","","",G6," وثيقة"),IF(V6=DATE(YEAR($V$5),COLUMN($L$1)+1,0),CONCATENATE("إعادة تقييم رصيد الوثائق بسعر ","","",$U$37," جنية مصرى"),""))) -> إسترداد 1 وثيقة | V6: 2019-01-03 | X6: =IF($V6="","",IFERROR(IF(MONTH($V6)=MONTH($V5),$X5+1,1),1)) -> 1
A7: =IF(V7>0,ROW()-5,"") -> 2 | E7: =IF(C7>0,ROUND(C7*D7,2),"") ->  | G7: 66 | H7: 319.919 | I7: =IF(G7>0,ROUND(G7*H7,2),"") -> 21114.65 | K7: =IFERROR(IF(G7>0,ROUND(G7*R6,2),""),"") -> 21065.81 | L7: =IFERROR(IF(G7>0,ROUND(I7-K7,2),""),"") -> 48.84 | M7: =IFERROR(IF(AND(V8="",$C$203>(SUM(S6,E7)-SUM(K7))/(SUM(Q6,C7)-SUM(G7)),V7>=DATE(YEAR($V$5),COLUMN($L$1)+1,0)),((SUM(Q6,C7)-SUM(G7))*$C$203)-((SUM(Q6,C7)-SUM(G7))*(R6)),""),"") ->  | O7: =IF(H7>0,ROUND(H7-R6,2),"") -> 0.74 | Q7: =Q6+C7-G7 -> 13 | R7: =IF(Q7>0,ROUND(S7/Q7,100),0) -> 319.1792308 | S7: 4149.33 | U7: =IF(C7>0,CONCATENATE("شراء ","","",C7," وثيقة"),IF(G7>0,CONCATENATE("إسترداد ","","",G7," وثيقة"),IF(V7=DATE(YEAR($V$5),COLUMN($L$1)+1,0),CONCATENATE("إعادة تقييم رصيد الوثائق بسعر ","","",$U$37," جنية مصرى"),""))) -> إسترداد 66 وثيقة | V7: 2019-01-06 | X7: 2
A8: 3 | G8: 13 | H8: 320.169 | I8: 4162.2 | K8: 4149.33 | L8: 12.87 | M8: =IFERROR(IF(AND(V9="",$C$203>(SUM(S7,E8)-SUM(K8))/(SUM(Q7,C8)-SUM(G8)),V8>=DATE(YEAR($V$5),COLUMN($L$1)+1,0)),((SUM(Q7,C8)-SUM(G8))*$C$203)-((SUM(Q7,C8)-SUM(G8))*(R7)),""),"") ->  | O8: 0.99 | Q8: 0 | R8: 0 | S8: 0 | U8: =IF(C8>0,CONCATENATE("شراء ","","",C8," وثيقة"),IF(G8>0,CONCATENATE("إسترداد ","","",G8," وثيقة"),IF(V8=DATE(YEAR($V$5),COLUMN($L$1)+1,0),CONCATENATE("إعادة تقييم رصيد الوثائق بسعر ","","",$U$37," جنية مصرى"),""))) -> إسترداد 13 وثيقة | V8: 2019-01-08 | X8: 3
A9: 4 | C9: 62 | D9: 320.796 | E9: 19889.35 | M9: =IFERROR(IF(AND(V10="",$C$203>(SUM(S8,E9)-SUM(K9))/(SUM(Q8,C9)-SUM(G9)),V9>=DATE(YEAR($V$5),COLUMN($L$1)+1,0)),((SUM(Q8,C9)-SUM(G9))*$C$203)-((SUM(Q8,C9)-SUM(G9))*(R8)),""),"") ->  | Q9: 62 | R9: 320.7959677 | S9: 19889.35 | U9: =IF(C9>0,CONCATENATE("شراء ","","",C9," وثيقة"),IF(G9>0,CONCATENATE("إسترداد ","","",G9," وثيقة"),IF(V9=DATE(YEAR($V$5),COLUMN($L$1)+1,0),CONCATENATE("إعادة تقييم رصيد الوثائق بسعر ","","",$U$37," جنية مصرى"),""))) -> شراء 62 وثيقة | V9: 2019-01-13 | X9: 4
A10: 5 | G10: 2 | H10: 321.047 | I10: =IF(G10>0,ROUND(G10*H10,2),"") -> 642.09 | K10: 641.59 | L10: 0.5 | M10: =IFERROR(IF(AND(V11="",$C$203>(SUM(S9,E10)-SUM(K10))/(SUM(Q9,C10)-SUM(G10)),V10>=DATE(YEAR($V$5),COLUMN($L$1)+1,0)),((SUM(Q9,C10)-SUM(G10))*$C$203)-((SUM(Q9,C10)-SUM(G10))*(R9)),""),"") ->  | O10: 0.25 | Q10: 60 | R10: 320.796 | S10: 19247.76 | U10: =IF(C10>0,CONCATENATE("شراء ","","",C10," وثيقة"),IF(G10>0,CONCATENATE("إسترداد ","","",G10," وثيقة"),IF(V10=DATE(YEAR($V$5),COLUMN($L$1)+1,0),CONCATENATE("إعادة تقييم رصيد الوثائق بسعر ","","",$U$37," جنية مصرى"),""))) -> إسترداد 2 وثيقة | V10: 2019-01-15 | X10: 5
A11: 6 | G11: 1 | H11: 321.173 | I11: 321.17 | K11: 320.8 | L11: 0.37 | M11: =IFERROR(IF(AND(V12="",$C$203>(SUM(S10,E11)-SUM(K11))/(SUM(Q10,C11)-SUM(G11)),V11>=DATE(YEAR($V$5),COLUMN($L$1)+1,0)),((SUM(Q10,C11)-SUM(G11))*$C$203)-((SUM(Q10,C11)-SUM(G11))*(R10)),""),"") ->  | O11: =IF(H11>0,ROUND(H11-R10,2),"") -> 0.38 | Q11: =Q10+C11-G11 -> 59 | R11: 320.7959322 | S11: 18926.96 | U11: =IF(C11>0,CONCATENATE("شراء ","","",C11," وثيقة"),IF(G11>0,CONCATENATE("إسترداد ","","",G11," وثيقة"),IF(V11=DATE(YEAR($V$5),COLUMN($L$1)+1,0),CONCATENATE("إعادة تقييم رصيد الوثائق بسعر ","","",$U$37," جنية مصرى"),""))) -> إسترداد 1 وثيقة | V11: 2019-01-16 | X11: 6
A12: 7 | G12: 4 | H12: 321.299 | I12: 1285.2 | K12: =IFERROR(IF(G12>0,ROUND(G12*R11,2),""),"") -> 1283.18 | L12: 2.02 | M12: =IFERROR(IF(AND(V13="",$C$203>(SUM(S11,E12)-SUM(K12))/(SUM(Q11,C12)-SUM(G12)),V12>=DATE(YEAR($V$5),COLUMN($L$1)+1,0)),((SUM(Q11,C12)-SUM(G12))*$C$203)-((SUM(Q11,C12)-SUM(G12))*(R11)),""),"") ->  | O12: =IF(H12>0,ROUND(H12-R11,2),"") -> 0.5 | Q12: =Q11+C12-G12 -> 55 | R12: =IF(Q12>0,ROUND(S12/Q12,100),0) -> 320.796 | S12: 17643.78 | U12: =IF(C12>0,CONCATENATE("شراء ","","",C12," وثيقة"),IF(G12>0,CONCATENATE("إسترداد ","","",G12," وثيقة"),IF(V12=DATE(YEAR($V$5),COLUMN($L$1)+1,0),CONCATENATE("إعادة تقييم رصيد الوثائق بسعر ","","",$U$37," جنية مصرى"),""))) -> إسترداد 4 وثيقة | V12: 2019-01-17 | X12: 7
A13: 8 | G13: 2 | H13: 321.676 | I13: 643.35 | K13: 641.59 | L13: 1.76 | M13: =IFERROR(IF(AND(V14="",$C$203>(SUM(S12,E13)-SUM(K13))/(SUM(Q12,C13)-SUM(G13)),V13>=DATE(YEAR($V$5),COLUMN($L$1)+1,0)),((SUM(Q12,C13)-SUM(G13))*$C$203)-((SUM(Q12,C13)-SUM(G13))*(R12)),""),"") ->  | O13: =IF(H13>0,ROUND(H13-R12,2),"") -> 0.88 | Q13: =Q12+C13-G13 -> 53 | R13: =IF(Q13>0,ROUND(S13/Q13,100),0) -> 320.7960377 | S13: 17002.19 | U13: =IF(C13>0,CONCATENATE("شراء ","","",C13," وثيقة"),IF(G13>0,CONCATENATE("إسترداد ","","",G13," وثيقة"),IF(V13=DATE(YEAR($V$5),COLUMN($L$1)+1,0),CONCATENATE("إعادة تقييم رصيد الوثائق بسعر ","","",$U$37," جنية مصرى"),""))) -> إسترداد 2 وثيقة | V13: 2019-01-20 | X13: 8
A14: 9 | G14: 2 | H14: 321.928 | I14: 643.86 | K14: 641.59 | L14: 2.27 | M14: =IFERROR(IF(AND(V15="",$C$203>(SUM(S13,E14)-SUM(K14))/(SUM(Q13,C14)-SUM(G14)),V14>=DATE(YEAR($V$5),COLUMN($L$1)+1,0)),((SUM(Q13,C14)-SUM(G14))*$C$203)-((SUM(Q13,C14)-SUM(G14))*(R13)),""),"") ->  | O14: 1.13 | Q14: 51 | R14: 320.7960784 | S14: 16360.6 | U14: =IF(C14>0,CONCATENATE("شراء ","","",C14," وثيقة"),IF(G14>0,CONCATENATE("إسترداد ","","",G14," وثيقة"),IF(V14=DATE(YEAR($V$5),COLUMN($L$1)+1,0),CONCATENATE("إعادة تقييم رصيد الوثائق بسعر ","","",$U$37," جنية مصرى"),""))) -> إسترداد 2 وثيقة | V14: 2019-01-22 | X14: 9
A15: 10 | C15: 42 | D15: 322.054 | E15: 13526.27 | M15: =IFERROR(IF(AND(V16="",$C$203>(SUM(S14,E15)-SUM(K15))/(SUM(Q14,C15)-SUM(G15)),V15>=DATE(YEAR($V$5),COLUMN($L$1)+1,0)),((SUM(Q14,C15)-SUM(G15))*$C$203)-((SUM(Q14,C15)-SUM(G15))*(R14)),""),"") ->  | Q15: 93 | R15: 321.3641935 | S15: 29886.87 | U15: =IF(C15>0,CONCATENATE("شراء ","","",C15," وثيقة"),IF(G15>0,CONCATENATE("إسترداد ","","",G15," وثيقة"),IF(V15=DATE(YEAR($V$5),COLUMN($L$1)+1,0),CONCATENATE("إعادة تقييم رصيد الوثائق بسعر ","","",$U$37," جنية مصرى"),""))) -> شراء 42 وثيقة | V15: 2019-01-23 | X15: 10
A16: 11 | G16: 44 | H16: 322.557 | I16: 14192.51 | K16: 14140.02 | L16: 52.49 | M16: =IFERROR(IF(AND(V17="",$C$203>(SUM(S15,E16)-SUM(K16))/(SUM(Q15,C16)-SUM(G16)),V16>=DATE(YEAR($V$5),COLUMN($L$1)+1,0)),((SUM(Q15,C16)-SUM(G16))*$C$203)-((SUM(Q15,C16)-SUM(G16))*(R15)),""),"") ->  | O16: 1.19 | Q16: 49 | R16: 321.3642857 | S16: 15746.85 | U16: =IF(C16>0,CONCATENATE("شراء ","","",C16," وثيقة"),IF(G16>0,CONCATENATE("إسترداد ","","",G16," وثيقة"),IF(V16=DATE(YEAR($V$5),COLUMN($L$1)+1,0),CONCATENATE("إعادة تقييم رصيد الوثائق بسعر ","","",$U$37," جنية مصرى"),""))) -> إسترداد 44 وثيقة | V16: 2019-01-27 | X16: 11
A17: 12 | C17: 64 | D17: 322.935 | E17: 20667.84 | M17: =IFERROR(IF(AND(V18="",$C$203>(SUM(S16,E17)-SUM(K17))/(SUM(Q16,C17)-SUM(G17)),V17>=DATE(YEAR($V$5),COLUMN($L$1)+1,0)),((SUM(Q16,C17)-SUM(G17))*$C$203)-((SUM(Q16,C17)-SUM(G17))*(R16)),""),"") ->  | Q17: 113 | R17: 322.2538938 | S17: 36414.69 | U17: =IF(C17>0,CONCATENATE("شراء ","","",C17," وثيقة"),IF(G17>0,CONCATENATE("إسترداد ","","",G17," وثيقة"),IF(V17=DATE(YEAR($V$5),COLUMN($L$1)+1,0),CONCATENATE("إعادة تقييم رصيد الوثائق بسعر ","","",$U$37," جنية مصرى"),""))) -> شراء 64 وثيقة | V17: 2019-01-30 | X17: 12
A18: 13 | C18: 54 | D18: 323.061 | E18: 17445.29 | M18: =IFERROR(IF(AND(V19="",$C$203>(SUM(S17,E18)-SUM(K18))/(SUM(Q17,C18)-SUM(G18)),V18>=DATE(YEAR($V$5),COLUMN($L$1)+1,0)),((SUM(Q17,C18)-SUM(G18))*$C$203)-((SUM(Q17,C18)-SUM(G18))*(R17)),""),"") ->  | Q18: 167 | R18: 322.5148503 | S18: 53859.98 | U18: =IF(C18>0,CONCATENATE("شراء ","","",C18," وثيقة"),IF(G18>0,CONCATENATE("إسترداد ","","",G18," وثيقة"),IF(V18=DATE(YEAR($V$5),COLUMN($L$1)+1,0),CONCATENATE("إعادة تقييم رصيد الوثائق بسعر ","","",$U$37," جنية مصرى"),""))) -> شراء 54 وثيقة | V18: 2019-01-31 | X18: 13
A19: 14 | G19: 11 | H19: 323.441 | I19: 3557.85 | K19: 3547.66 | L19: 10.19 | M19: =IFERROR(IF(AND(V20="",$C$203>(SUM(S18,E19)-SUM(K19))/(SUM(Q18,C19)-SUM(G19)),V19>=DATE(YEAR($V$5),COLUMN($L$1)+1,0)),((SUM(Q18,C19)-SUM(G19))*$C$203)-((SUM(Q18,C19)-SUM(G19))*(R18)),""),"") ->  | O19: 0.93 | Q19: 156 | R19: 322.5148718 | S19: 50312.32 | U19: =IF(C19>0,CONCATENATE("شراء ","","",C19," وثيقة"),IF(G19>0,CONCATENATE("إسترداد ","","",G19," وثيقة"),IF(V19=DATE(YEAR($V$5),COLUMN($L$1)+1,0),CONCATENATE("إعادة تقييم رصيد الوثائق بسعر ","","",$U$37," جنية مصرى"),""))) -> إسترداد 11 وثيقة | V19: 2019-02-03 | X19: 1
A20: 15 | G20: 3 | H20: 323.567 | I20: 970.7 | K20: 967.54 | L20: =IFERROR(IF(G20>0,ROUND(I20-K20,2),""),"") -> 3.16 | M20: =IFERROR(IF(AND(V21="",$C$203>(SUM(S19,E20)-SUM(K20))/(SUM(Q19,C20)-SUM(G20)),V20>=DATE(YEAR($V$5),COLUMN($L$1)+1,0)),((SUM(Q19,C20)-SUM(G20))*$C$203)-((SUM(Q19,C20)-SUM(G20))*(R19)),""),"") ->  | O20: 1.05 | Q20: 153 | R20: 322.514902 | S20: 49344.78 | U20: =IF(C20>0,CONCATENATE("شراء ","","",C20," وثيقة"),IF(G20>0,CONCATENATE("إسترداد ","","",G20," وثيقة"),IF(V20=DATE(YEAR($V$5),COLUMN($L$1)+1,0),CONCATENATE("إعادة تقييم رصيد الوثائق بسعر ","","",$U$37," جنية مصرى"),""))) -> إسترداد 3 وثيقة | V20: 2019-02-04 | X20: 2
A21: 16 | G21: 5 | H21: 324.332 | I21: 1621.66 | K21: 1612.57 | L21: 9.09 | M21: =IFERROR(IF(AND(V22="",$C$203>(SUM(S20,E21)-SUM(K21))/(SUM(Q20,C21)-SUM(G21)),V21>=DATE(YEAR($V$5),COLUMN($L$1)+1,0)),((SUM(Q20,C21)-SUM(G21))*$C$203)-((SUM(Q20,C21)-SUM(G21))*(R20)),""),"") ->  | O21: 1.82 | Q21: 148 | R21: 322.5149324 | S21: 47732.21 | U21: =IF(C21>0,CONCATENATE("شراء ","","",C21," وثيقة"),IF(G21>0,CONCATENATE("إسترداد ","","",G21," وثيقة"),IF(V21=DATE(YEAR($V$5),COLUMN($L$1)+1,0),CONCATENATE("إعادة تقييم رصيد الوثائق بسعر ","","",$U$37," جنية مصرى"),""))) -> إسترداد 5 وثيقة | V21: 2019-02-10 | X21: 3
A22: 17 | G22: 1 | H22: 324.585 | I22: 324.59 | K22: 322.51 | L22: 2.08 | M22: =IFERROR(IF(AND(V23="",$C$203>(SUM(S21,E22)-SUM(K22))/(SUM(Q21,C22)-SUM(G22)),V22>=DATE(YEAR($V$5),COLUMN($L$1)+1,0)),((SUM(Q21,C22)-SUM(G22))*$C$203)-((SUM(Q21,C22)-SUM(G22))*(R21)),""),"") ->  | O22: 2.07 | Q22: 147 | R22: 322.514966 | S22: 47409.7 | U22: =IF(C22>0,CONCATENATE("شراء ","","",C22," وثيقة"),IF(G22>0,CONCATENATE("إسترداد ","","",G22," وثيقة"),IF(V22=DATE(YEAR($V$5),COLUMN($L$1)+1,0),CONCATENATE("إعادة تقييم رصيد الوثائق بسعر ","","",$U$37," جنية مصرى"),""))) -> إسترداد 1 وثيقة | V22: 2019-02-12 | X22: 4
A23: 18 | G23: 1 | H23: 324.84 | I23: 324.84 | K23: 322.51 | L23: 2.33 | M23: =IFERROR(IF(AND(V24="",$C$203>(SUM(S22,E23)-SUM(K23))/(SUM(Q22,C23)-SUM(G23)),V23>=DATE(YEAR($V$5),COLUMN($L$1)+1,0)),((SUM(Q22,C23)-SUM(G23))*$C$203)-((SUM(Q22,C23)-SUM(G23))*(R22)),""),"") ->  | O23: 2.33 | Q23: 146 | R23: 322.515 | S23: 47087.19 | U23: =IF(C23>0,CONCATENATE("شراء ","","",C23," وثيقة"),IF(G23>0,CONCATENATE("إسترداد ","","",G23," وثيقة"),IF(V23=DATE(YEAR($V$5),COLUMN($L$1)+1,0),CONCATENATE("إعادة تقييم رصيد الوثائق بسعر ","","",$U$37," جنية مصرى"),""))) -> إسترداد 1 وثيقة | V23: 2019-02-14 | X23: 5
A24: 19 | G24: 11 | H24: 325.222 | I24: 3577.44 | K24: 3547.67 | L24: 29.77 | M24: =IFERROR(IF(AND(V25="",$C$203>(SUM(S23,E24)-SUM(K24))/(SUM(Q23,C24)-SUM(G24)),V24>=DATE(YEAR($V$5),COLUMN($L$1)+1,0)),((SUM(Q23,C24)-SUM(G24))*$C$203)-((SUM(Q23,C24)-SUM(G24))*(R23)),""),"") ->  | O24: 2.71 | Q24: 135 | R24: 322.514963 | S24: 43539.52 | U24: =IF(C24>0,CONCATENATE("شراء ","","",C24," وثيقة"),IF(G24>0,CONCATENATE("إسترداد ","","",G24," وثيقة"),IF(V24=DATE(YEAR($V$5),COLUMN($L$1)+1,0),CONCATENATE("إعادة تقييم رصيد الوثائق بسعر ","","",$U$37," جنية مصرى"),""))) -> إسترداد 11 وثيقة | V24: 2019-02-17 | X24: 6
A25: 20 | G25: 1 | H25: 325.349 | I25: 325.35 | K25: 322.51 | L25: 2.84 | M25: =IFERROR(IF(AND(V26="",$C$203>(SUM(S24,E25)-SUM(K25))/(SUM(Q24,C25)-SUM(G25)),V25>=DATE(YEAR($V$5),COLUMN($L$1)+1,0)),((SUM(Q24,C25)-SUM(G25))*$C$203)-((SUM(Q24,C25)-SUM(G25))*(R24)),""),"") ->  | O25: 2.83 | Q25: 134 | R25: 322.515 | S25: 43217.01 | U25: =IF(C25>0,CONCATENATE("شراء ","","",C25," وثيقة"),IF(G25>0,CONCATENATE("إسترداد ","","",G25," وثيقة"),IF(V25=DATE(YEAR($V$5),COLUMN($L$1)+1,0),CONCATENATE("إعادة تقييم رصيد الوثائق بسعر ","","",$U$37," جنية مصرى"),""))) -> إسترداد 1 وثيقة | V25: 2019-02-18 | X25: 7
A26: 21 | C26: 36 | D26: 325.729 | E26: 11726.24 | M26: =IFERROR(IF(AND(V27="",$C$203>(SUM(S25,E26)-SUM(K26))/(SUM(Q25,C26)-SUM(G26)),V26>=DATE(YEAR($V$5),COLUMN($L$1)+1,0)),((SUM(Q25,C26)-SUM(G26))*$C$203)-((SUM(Q25,C26)-SUM(G26))*(R25)),""),"") ->  | Q26: 170 | R26: 323.1955882 | S26: 54943.25 | U26: =IF(C26>0,CONCATENATE("شراء ","","",C26," وثيقة"),IF(G26>0,CONCATENATE("إسترداد ","","",G26," وثيقة"),IF(V26=DATE(YEAR($V$5),COLUMN($L$1)+1,0),CONCATENATE("إعادة تقييم رصيد الوثائق بسعر ","","",$U$37," جنية مصرى"),""))) -> شراء 36 وثيقة | V26: 2019-02-21 | X26: 8
A27: 22 | G27: 43 | H27: 326.111 | I27: 14022.77 | K27: 13897.41 | L27: 125.36 | M27: =IFERROR(IF(AND(V28="",$C$203>(SUM(S26,E27)-SUM(K27))/(SUM(Q26,C27)-SUM(G27)),V27>=DATE(YEAR($V$5),COLUMN($L$1)+1,0)),((SUM(Q26,C27)-SUM(G27))*$C$203)-((SUM(Q26,C27)-SUM(G27))*(R26)),""),"") ->  | O27: 2.92 | Q27: 127 | R27: 323.1955906 | S27: 41045.84 | U27: =IF(C27>0,CONCATENATE("شراء ","","",C27," وثيقة"),IF(G27>0,CONCATENATE("إسترداد ","","",G27," وثيقة"),IF(V27=DATE(YEAR($V$5),COLUMN($L$1)+1,0),CONCATENATE("إعادة تقييم رصيد الوثائق بسعر ","","",$U$37," جنية مصرى"),""))) -> إسترداد 43 وثيقة | V27: 2019-02-24 | X27: 9
A28: 23 | C28: 87 | D28: 326.524 | E28: 28407.59 | M28: =IFERROR(IF(AND(V29="",$C$203>(SUM(S27,E28)-SUM(K28))/(SUM(Q27,C28)-SUM(G28)),V28>=DATE(YEAR($V$5),COLUMN($L$1)+1,0)),((SUM(Q27,C28)-SUM(G28))*$C$203)-((SUM(Q27,C28)-SUM(G28))*(R27)),""),"") ->  | Q28: 214 | R28: 324.5487383 | S28: 69453.43 | U28: =IF(C28>0,CONCATENATE("شراء ","","",C28," وثيقة"),IF(G28>0,CONCATENATE("إسترداد ","","",G28," وثيقة"),IF(V28=DATE(YEAR($V$5),COLUMN($L$1)+1,0),CONCATENATE("إعادة تقييم رصيد الوثائق بسعر ","","",$U$37," جنية مصرى"),""))) -> شراء 87 وثيقة | V28: 2019-02-27 | X28: 10
A29: 24 | G29: 213 | H29: 326.659 | I29: 69578.37 | K29: 69128.88 | L29: 449.49 | M29: =IFERROR(IF(AND(V30="",$C$203>(SUM(S28,E29)-SUM(K29))/(SUM(Q28,C29)-SUM(G29)),V29>=DATE(YEAR($V$5),COLUMN($L$1)+1,0)),((SUM(Q28,C29)-SUM(G29))*$C$203)-((SUM(Q28,C29)-SUM(G29))*(R28)),""),"") ->  | O29: 2.11 | Q29: 1 | R29: 324.55 | S29: 324.55 | U29: =IF(C29>0,CONCATENATE("شراء ","","",C29," وثيقة"),IF(G29>0,CONCATENATE("إسترداد ","","",G29," وثيقة"),IF(V29=DATE(YEAR($V$5),COLUMN($L$1)+1,0),CONCATENATE("إعادة تقييم رصيد الوثائق بسعر ","","",$U$37," جنية مصرى"),""))) -> إسترداد 213 وثيقة | V29: 2019-02-28 | X29: 11
A30: 25 | C30: 22 | D30: 327.04 | E30: 7194.88 | M30: =IFERROR(IF(AND(V31="",$C$203>(SUM(S29,E30)-SUM(K30))/(SUM(Q29,C30)-SUM(G30)),V30>=DATE(YEAR($V$5),COLUMN($L$1)+1,0)),((SUM(Q29,C30)-SUM(G30))*$C$203)-((SUM(Q29,C30)-SUM(G30))*(R29)),""),"") ->  | Q30: 23 | R30: 326.9317391 | S30: 7519.43 | U30: =IF(C30>0,CONCATENATE("شراء ","","",C30," وثيقة"),IF(G30>0,CONCATENATE("إسترداد ","","",G30," وثيقة"),IF(V30=DATE(YEAR($V$5),COLUMN($L$1)+1,0),CONCATENATE("إعادة تقييم رصيد الوثائق بسعر ","","",$U$37," جنية مصرى"),""))) -> شراء 22 وثيقة | V30: 2019-03-03 | X30: 1
A31: 26 | C31: 27 | D31: 327.292 | E31: 8836.88 | M31: =IFERROR(IF(AND(V32="",$C$203>(SUM(S30,E31)-SUM(K31))/(SUM(Q30,C31)-SUM(G31)),V31>=DATE(YEAR($V$5),COLUMN($L$1)+1,0)),((SUM(Q30,C31)-SUM(G31))*$C$203)-((SUM(Q30,C31)-SUM(G31))*(R30)),""),"") ->  | Q31: 50 | R31: 327.1262 | S31: 16356.31 | U31: =IF(C31>0,CONCATENATE("شراء ","","",C31," وثيقة"),IF(G31>0,CONCATENATE("إسترداد ","","",G31," وثيقة"),IF(V31=DATE(YEAR($V$5),COLUMN($L$1)+1,0),CONCATENATE("إعادة تقييم رصيد الوثائق بسعر ","","",$U$37," جنية مصرى"),""))) -> شراء 27 وثيقة | V31: 2019-03-05 | X31: 2
A32: 27 | G32: 3 | H32: 327.545 | I32: 982.64 | K32: 981.38 | L32: 1.26 | M32: =IFERROR(IF(AND(V33="",$C$203>(SUM(S31,E32)-SUM(K32))/(SUM(Q31,C32)-SUM(G32)),V32>=DATE(YEAR($V$5),COLUMN($L$1)+1,0)),((SUM(Q31,C32)-SUM(G32))*$C$203)-((SUM(Q31,C32)-SUM(G32))*(R31)),""),"") ->  | O32: 0.42 | Q32: 47 | R32: 327.1261702 | S32: 15374.93 | U32: =IF(C32>0,CONCATENATE("شراء ","","",C32," وثيقة"),IF(G32>0,CONCATENATE("إسترداد ","","",G32," وثيقة"),IF(V32=DATE(YEAR($V$5),COLUMN($L$1)+1,0),CONCATENATE("إعادة تقييم رصيد الوثائق بسعر ","","",$U$37," جنية مصرى"),""))) -> إسترداد 3 وثيقة | V32: 2019-03-07 | X32: 3
A33: 28 | G33: 17 | H33: 327.923 | I33: 5574.69 | K33: 5561.14 | L33: 13.55 | M33: =IFERROR(IF(AND(V34="",$C$203>(SUM(S32,E33)-SUM(K33))/(SUM(Q32,C33)-SUM(G33)),V33>=DATE(YEAR($V$5),COLUMN($L$1)+1,0)),((SUM(Q32,C33)-SUM(G33))*$C$203)-((SUM(Q32,C33)-SUM(G33))*(R32)),""),"") ->  | O33: 0.8 | Q33: 30 | R33: 327.1263333 | S33: 9813.79 | U33: =IF(C33>0,CONCATENATE("شراء ","","",C33," وثيقة"),IF(G33>0,CONCATENATE("إسترداد ","","",G33," وثيقة"),IF(V33=DATE(YEAR($V$5),COLUMN($L$1)+1,0),CONCATENATE("إعادة تقييم رصيد الوثائق بسعر ","","",$U$37," جنية مصرى"),""))) -> إسترداد 17 وثيقة | V33: 2019-03-10 | X33: 4
A34: 29 | G34: 20 | H34: 328.05 | I34: 6561 | K34: 6542.53 | L34: 18.47 | M34: =IFERROR(IF(AND(V35="",$C$203>(SUM(S33,E34)-SUM(K34))/(SUM(Q33,C34)-SUM(G34)),V34>=DATE(YEAR($V$5),COLUMN($L$1)+1,0)),((SUM(Q33,C34)-SUM(G34))*$C$203)-((SUM(Q33,C34)-SUM(G34))*(R33)),""),"") ->  | O34: 0.92 | Q34: 10 | R34: 327.126 | S34: 3271.26 | U34: =IF(C34>0,CONCATENATE("شراء ","","",C34," وثيقة"),IF(G34>0,CONCATENATE("إسترداد ","","",G34," وثيقة"),IF(V34=DATE(YEAR($V$5),COLUMN($L$1)+1,0),CONCATENATE("إعادة تقييم رصيد الوثائق بسعر ","","",$U$37," جنية مصرى"),""))) -> إسترداد 20 وثيقة | V34: 2019-03-11 | X34: 5
A35: 30 | G35: 1 | H35: 328.176 | I35: 328.18 | K35: 327.13 | L35: 1.05 | M35: =IFERROR(IF(AND(V36="",$C$203>(SUM(S34,E35)-SUM(K35))/(SUM(Q34,C35)-SUM(G35)),V35>=DATE(YEAR($V$5),COLUMN($L$1)+1,0)),((SUM(Q34,C35)-SUM(G35))*$C$203)-((SUM(Q34,C35)-SUM(G35))*(R34)),""),"") ->  | O35: 1.05 | Q35: 9 | R35: 327.1255556 | S35: 2944.13 | U35: =IF(C35>0,CONCATENATE("شراء ","","",C35," وثيقة"),IF(G35>0,CONCATENATE("إسترداد ","","",G35," وثيقة"),IF(V35=DATE(YEAR($V$5),COLUMN($L$1)+1,0),CONCATENATE("إعادة تقييم رصيد الوثائق بسعر ","","",$U$37," جنية مصرى"),""))) -> إسترداد 1 وثيقة | V35: 2019-03-12 | X35: 6
A36: 31 | G36: 3 | H36: 328.429 | I36: 985.29 | K36: 981.38 | L36: 3.91 | M36: =IFERROR(IF(AND(V37="",$C$203>(SUM(S35,E36)-SUM(K36))/(SUM(Q35,C36)-SUM(G36)),V36>=DATE(YEAR($V$5),COLUMN($L$1)+1,0)),((SUM(Q35,C36)-SUM(G36))*$C$203)-((SUM(Q35,C36)-SUM(G36))*(R35)),""),"") ->  | O36: 1.3 | Q36: 6 | R36: 327.125 | S36: 1962.75 | U36: =IF(C36>0,CONCATENATE("شراء ","","",C36," وثيقة"),IF(G36>0,CONCATENATE("إسترداد ","","",G36," وثيقة"),IF(V36=DATE(YEAR($V$5),COLUMN($L$1)+1,0),CONCATENATE("إعادة تقييم رصيد الوثائق بسعر ","","",$U$37," جنية مصرى"),""))) -> إسترداد 3 وثيقة | V36: 2019-03-14 | X36: 7
A37: 32 | G37: 4 | H37: 328.81 | I37: 1315.24 | K37: 1308.5 | L37: 6.74 | M37: =IFERROR(IF(AND(V38="",$C$203>(SUM(S36,E37)-SUM(K37))/(SUM(Q36,C37)-SUM(G37)),V37>=DATE(YEAR($V$5),COLUMN($L$1)+1,0)),((SUM(Q36,C37)-SUM(G37))*$C$203)-((SUM(Q36,C37)-SUM(G37))*(R36)),""),"") ->  | O37: 1.69 | Q37: 2 | R37: 327.125 | S37: 654.25 | U37: =IF(C37>0,CONCATENATE("شراء ","","",C37," وثيقة"),IF(G37>0,CONCATENATE("إسترداد ","","",G37," وثيقة"),IF(V37=DATE(YEAR($V$5),COLUMN($L$1)+1,0),CONCATENATE("إعادة تقييم رصيد الوثائق بسعر ","","",$U$37," جنية مصرى"),""))) -> إسترداد 4 وثيقة | V37: 2019-03-17 | X37: 8
A38: 33 | G38: 1 | H38: 329.062 | I38: 329.06 | K38: 327.13 | L38: 1.93 | M38: =IFERROR(IF(AND(V39="",$C$203>(SUM(S37,E38)-SUM(K38))/(SUM(Q37,C38)-SUM(G38)),V38>=DATE(YEAR($V$5),COLUMN($L$1)+1,0)),((SUM(Q37,C38)-SUM(G38))*$C$203)-((SUM(Q37,C38)-SUM(G38))*(R37)),""),"") ->  | O38: 1.94 | Q38: 1 | R38: 327.12 | S38: 327.12 | U38: =IF(C38>0,CONCATENATE("شراء ","","",C38," وثيقة"),IF(G38>0,CONCATENATE("إسترداد ","","",G38," وثيقة"),IF(V38=DATE(YEAR($V$5),COLUMN($L$1)+1,0),CONCATENATE("إعادة تقييم رصيد الوثائق بسعر ","","",$U$37," جنية مصرى"),""))) -> إسترداد 1 وثيقة | V38: 2019-03-19 | X38: 9
A39: 34 | G39: 1 | H39: 329.188 | I39: 329.19 | K39: 327.12 | L39: 2.07 | M39: =IFERROR(IF(AND(V40="",$C$203>(SUM(S38,E39)-SUM(K39))/(SUM(Q38,C39)-SUM(G39)),V39>=DATE(YEAR($V$5),COLUMN($L$1)+1,0)),((SUM(Q38,C39)-SUM(G39))*$C$203)-((SUM(Q38,C39)-SUM(G39))*(R38)),""),"") ->  | O39: 2.07 | Q39: 0 | R39: 0 | S39: 0 | U39: =IF(C39>0,CONCATENATE("شراء ","","",C39," وثيقة"),IF(G39>0,CONCATENATE("إسترداد ","","",G39," وثيقة"),IF(V39=DATE(YEAR($V$5),COLUMN($L$1)+1,0),CONCATENATE("إعادة تقييم رصيد الوثائق بسعر ","","",$U$37," جنية مصرى"),""))) -> إسترداد 1 وثيقة | V39: 2019-03-20 | X39: 10
A40: 35 | C40: 1 | D40: 329.315 | E40: 329.32 | M40: =IFERROR(IF(AND(V41="",$C$203>(SUM(S39,E40)-SUM(K40))/(SUM(Q39,C40)-SUM(G40)),V40>=DATE(YEAR($V$5),COLUMN($L$1)+1,0)),((SUM(Q39,C40)-SUM(G40))*$C$203)-((SUM(Q39,C40)-SUM(G40))*(R39)),""),"") ->  | Q40: 1 | R40: 329.32 | S40: 329.32 | U40: =IF(C40>0,CONCATENATE("شراء ","","",C40," وثيقة"),IF(G40>0,CONCATENATE("إسترداد ","","",G40," وثيقة"),IF(V40=DATE(YEAR($V$5),COLUMN($L$1)+1,0),CONCATENATE("إعادة تقييم رصيد الوثائق بسعر ","","",$U$37," جنية مصرى"),""))) -> شراء 1 وثيقة | V40: 2019-03-21 | X40: 11
A41: 36 | G41: 1 | H41: 329.315 | I41: 329.32 | K41: 329.32 | L41: 0 | M41: =IFERROR(IF(AND(V42="",$C$203>(SUM(S40,E41)-SUM(K41))/(SUM(Q40,C41)-SUM(G41)),V41>=DATE(YEAR($V$5),COLUMN($L$1)+1,0)),((SUM(Q40,C41)-SUM(G41))*$C$203)-((SUM(Q40,C41)-SUM(G41))*(R40)),""),"") ->  | O41: 0 | Q41: 0 | R41: 0 | S41: 0 | U41: =IF(C41>0,CONCATENATE("شراء ","","",C41," وثيقة"),IF(G41>0,CONCATENATE("إسترداد ","","",G41," وثيقة"),IF(V41=DATE(YEAR($V$5),COLUMN($L$1)+1,0),CONCATENATE("إعادة تقييم رصيد الوثائق بسعر ","","",$U$37," جنية مصرى"),""))) -> إسترداد 1 وثيقة | V41: 2019-03-21 | X41: 12
A42: 37 | C42: 63 | D42: 330.203 | E42: 20802.79 | M42: =IFERROR(IF(AND(V43="",$C$203>(SUM(S41,E42)-SUM(K42))/(SUM(Q41,C42)-SUM(G42)),V42>=DATE(YEAR($V$5),COLUMN($L$1)+1,0)),((SUM(Q41,C42)-SUM(G42))*$C$203)-((SUM(Q41,C42)-SUM(G42))*(R41)),""),"") ->  | Q42: 63 | R42: 330.2030159 | S42: 20802.79 | U42: =IF(C42>0,CONCATENATE("شراء ","","",C42," وثيقة"),IF(G42>0,CONCATENATE("إسترداد ","","",G42," وثيقة"),IF(V42=DATE(YEAR($V$5),COLUMN($L$1)+1,0),CONCATENATE("إعادة تقييم رصيد الوثائق بسعر ","","",$U$37," جنية مصرى"),""))) -> شراء 63 وثيقة | V42: 2019-03-28 | X42: 13
A43: 38 | C43: 52 | D43: 330.582 | E43: 17190.26 | M43: =IFERROR(IF(AND(V44="",$C$203>(SUM(S42,E43)-SUM(K43))/(SUM(Q42,C43)-SUM(G43)),V43>=DATE(YEAR($V$5),COLUMN($L$1)+1,0)),((SUM(Q42,C43)-SUM(G43))*$C$203)-((SUM(Q42,C43)-SUM(G43))*(R42)),""),"") ->  | Q43: 115 | R43: 330.3743478 | S43: 37993.05 | U43: =IF(C43>0,CONCATENATE("شراء ","","",C43," وثيقة"),IF(G43>0,CONCATENATE("إسترداد ","","",G43," وثيقة"),IF(V43=DATE(YEAR($V$5),COLUMN($L$1)+1,0),CONCATENATE("إعادة تقييم رصيد الوثائق بسعر ","","",$U$37," جنية مصرى"),""))) -> شراء 52 وثيقة | V43: 2019-03-31 | X43: 14
A44: 39 | G44: 16 | H44: 330.708 | I44: 5291.33 | K44: 5285.99 | L44: 5.34 | M44: =IFERROR(IF(AND(V45="",$C$203>(SUM(S43,E44)-SUM(K44))/(SUM(Q43,C44)-SUM(G44)),V44>=DATE(YEAR($V$5),COLUMN($L$1)+1,0)),((SUM(Q43,C44)-SUM(G44))*$C$203)-((SUM(Q43,C44)-SUM(G44))*(R43)),""),"") ->  | O44: 0.33 | Q44: 99 | R44: 330.3743434 | S44: 32707.06 | U44: =IF(C44>0,CONCATENATE("شراء ","","",C44," وثيقة"),IF(G44>0,CONCATENATE("إسترداد ","","",G44," وثيقة"),IF(V44=DATE(YEAR($V$5),COLUMN($L$1)+1,0),CONCATENATE("إعادة تقييم رصيد الوثائق بسعر ","","",$U$37," جنية مصرى"),""))) -> إسترداد 16 وثيقة | V44: 2019-04-01 | X44: 1
A45: 40 | G45: 2 | H45: 330.838 | I45: 661.68 | K45: 660.75 | L45: 0.93 | M45: =IFERROR(IF(AND(V46="",$C$203>(SUM(S44,E45)-SUM(K45))/(SUM(Q44,C45)-SUM(G45)),V45>=DATE(YEAR($V$5),COLUMN($L$1)+1,0)),((SUM(Q44,C45)-SUM(G45))*$C$203)-((SUM(Q44,C45)-SUM(G45))*(R44)),""),"") ->  | O45: 0.46 | Q45: 97 | R45: 330.3743299 | S45: 32046.31 | U45: =IF(C45>0,CONCATENATE("شراء ","","",C45," وثيقة"),IF(G45>0,CONCATENATE("إسترداد ","","",G45," وثيقة"),IF(V45=DATE(YEAR($V$5),COLUMN($L$1)+1,0),CONCATENATE("إعادة تقييم رصيد الوثائق بسعر ","","",$U$37," جنية مصرى"),""))) -> إسترداد 2 وثيقة | V45: 2019-04-02 | X45: 2
A46: 41 | G46: 1 | H46: 330.963 | I46: 330.96 | K46: =IFERROR(IF(G46>0,ROUND(G46*R45,2),""),"") -> 330.37 | L46: 0.59 | M46: =IFERROR(IF(AND(V47="",$C$203>(SUM(S45,E46)-SUM(K46))/(SUM(Q45,C46)-SUM(G46)),V46>=DATE(YEAR($V$5),COLUMN($L$1)+1,0)),((SUM(Q45,C46)-SUM(G46))*$C$203)-((SUM(Q45,C46)-SUM(G46))*(R45)),""),"") ->  | O46: 0.59 | Q46: 96 | R46: 330.374375 | S46: 31715.94 | U46: =IF(C46>0,CONCATENATE("شراء ","","",C46," وثيقة"),IF(G46>0,CONCATENATE("إسترداد ","","",G46," وثيقة"),IF(V46=DATE(YEAR($V$5),COLUMN($L$1)+1,0),CONCATENATE("إعادة تقييم رصيد الوثائق بسعر ","","",$U$37," جنية مصرى"),""))) -> إسترداد 1 وثيقة | V46: 2019-04-03 | X46: 3
A47: 42 | G47: =80+2 -> 82 | H47: 331.088 | I47: 27149.22 | K47: 27090.7 | L47: 58.52 | M47: =IFERROR(IF(AND(V48="",$C$203>(SUM(S46,E47)-SUM(K47))/(SUM(Q46,C47)-SUM(G47)),V47>=DATE(YEAR($V$5),COLUMN($L$1)+1,0)),((SUM(Q46,C47)-SUM(G47))*$C$203)-((SUM(Q46,C47)-SUM(G47))*(R46)),""),"") ->  | O47: 0.71 | Q47: 14 | R47: 330.3742857 | S47: 4625.24 | U47: =IF(C47>0,CONCATENATE("شراء ","","",C47," وثيقة"),IF(G47>0,CONCATENATE("إسترداد ","","",G47," وثيقة"),IF(V47=DATE(YEAR($V$5),COLUMN($L$1)+1,0),CONCATENATE("إعادة تقييم رصيد الوثائق بسعر ","","",$U$37," جنية مصرى"),""))) -> إسترداد 82 وثيقة | V47: 2019-04-04 | X47: 4
A48: 43 | C48: 1 | D48: 331.463 | E48: 331.46 | M48: =IFERROR(IF(AND(V49="",$C$203>(SUM(S47,E48)-SUM(K48))/(SUM(Q47,C48)-SUM(G48)),V48>=DATE(YEAR($V$5),COLUMN($L$1)+1,0)),((SUM(Q47,C48)-SUM(G48))*$C$203)-((SUM(Q47,C48)-SUM(G48))*(R47)),""),"") ->  | Q48: 15 | R48: 330.4466667 | S48: 4956.7 | U48: =IF(C48>0,CONCATENATE("شراء ","","",C48," وثيقة"),IF(G48>0,CONCATENATE("إسترداد ","","",G48," وثيقة"),IF(V48=DATE(YEAR($V$5),COLUMN($L$1)+1,0),CONCATENATE("إعادة تقييم رصيد الوثائق بسعر ","","",$U$37," جنية مصرى"),""))) -> شراء 1 وثيقة | V48: 2019-04-07 | X48: 5
A49: 44 | G49: 1 | H49: 331.713 | I49: 331.71 | K49: 330.45 | L49: 1.26 | M49: =IFERROR(IF(AND(V50="",$C$203>(SUM(S48,E49)-SUM(K49))/(SUM(Q48,C49)-SUM(G49)),V49>=DATE(YEAR($V$5),COLUMN($L$1)+1,0)),((SUM(Q48,C49)-SUM(G49))*$C$203)-((SUM(Q48,C49)-SUM(G49))*(R48)),""),"") ->  | O49: 1.27 | Q49: 14 | R49: 330.4464286 | S49: 4626.25 | U49: =IF(C49>0,CONCATENATE("شراء ","","",C49," وثيقة"),IF(G49>0,CONCATENATE("إسترداد ","","",G49," وثيقة"),IF(V49=DATE(YEAR($V$5),COLUMN($L$1)+1,0),CONCATENATE("إعادة تقييم رصيد الوثائق بسعر ","","",$U$37," جنية مصرى"),""))) -> إسترداد 1 وثيقة | V49: 2019-04-09 | X49: 6
A50: 45 | C50: 33 | D50: 331.837 | E50: 10950.62 | M50: =IFERROR(IF(AND(V51="",$C$203>(SUM(S49,E50)-SUM(K50))/(SUM(Q49,C50)-SUM(G50)),V50>=DATE(YEAR($V$5),COLUMN($L$1)+1,0)),((SUM(Q49,C50)-SUM(G50))*$C$203)-((SUM(Q49,C50)-SUM(G50))*(R49)),""),"") ->  | Q50: 47 | R50: 331.422766 | S50: 15576.87 | U50: =IF(C50>0,CONCATENATE("شراء ","","",C50," وثيقة"),IF(G50>0,CONCATENATE("إسترداد ","","",G50," وثيقة"),IF(V50=DATE(YEAR($V$5),COLUMN($L$1)+1,0),CONCATENATE("إعادة تقييم رصيد الوثائق بسعر ","","",$U$37," جنية مصرى"),""))) -> شراء 33 وثيقة | V50: 2019-04-10 | X50: 7
A51: 46 | G51: 6 | H51: 331.962 | I51: 1991.77 | K51: 1988.54 | L51: 3.23 | M51: =IFERROR(IF(AND(V52="",$C$203>(SUM(S50,E51)-SUM(K51))/(SUM(Q50,C51)-SUM(G51)),V51>=DATE(YEAR($V$5),COLUMN($L$1)+1,0)),((SUM(Q50,C51)-SUM(G51))*$C$203)-((SUM(Q50,C51)-SUM(G51))*(R50)),""),"") ->  | O51: 0.54 | Q51: 41 | R51: 331.4226829 | S51: 13588.33 | U51: =IF(C51>0,CONCATENATE("شراء ","","",C51," وثيقة"),IF(G51>0,CONCATENATE("إسترداد ","","",G51," وثيقة"),IF(V51=DATE(YEAR($V$5),COLUMN($L$1)+1,0),CONCATENATE("إعادة تقييم رصيد الوثائق بسعر ","","",$U$37," جنية مصرى"),""))) -> إسترداد 6 وثيقة | V51: 2019-04-11 | X51: 8
A52: 47 | G52: 2 | H52: 332.338 | I52: 664.68 | K52: 662.85 | L52: 1.83 | M52: =IFERROR(IF(AND(V53="",$C$203>(SUM(S51,E52)-SUM(K52))/(SUM(Q51,C52)-SUM(G52)),V52>=DATE(YEAR($V$5),COLUMN($L$1)+1,0)),((SUM(Q51,C52)-SUM(G52))*$C$203)-((SUM(Q51,C52)-SUM(G52))*(R51)),""),"") ->  | O52: 0.92 | Q52: 39 | R52: 331.4225641 | S52: 12925.48 | U52: =IF(C52>0,CONCATENATE("شراء ","","",C52," وثيقة"),IF(G52>0,CONCATENATE("إسترداد ","","",G52," وثيقة"),IF(V52=DATE(YEAR($V$5),COLUMN($L$1)+1,0),CONCATENATE("إعادة تقييم رصيد الوثائق بسعر ","","",$U$37," جنية مصرى"),""))) -> إسترداد 2 وثيقة | V52: 2019-04-14 | X52: 9
A53: 48 | G53: 38 | H53: 332.714 | I53: 12643.13 | K53: 12594.06 | L53: 49.07 | M53: =IFERROR(IF(AND(V54="",$C$203>(SUM(S52,E53)-SUM(K53))/(SUM(Q52,C53)-SUM(G53)),V53>=DATE(YEAR($V$5),COLUMN($L$1)+1,0)),((SUM(Q52,C53)-SUM(G53))*$C$203)-((SUM(Q52,C53)-SUM(G53))*(R52)),""),"") ->  | O53: 1.29 | Q53: 1 | R53: 331.42 | S53: 331.42 | U53: =IF(C53>0,CONCATENATE("شراء ","","",C53," وثيقة"),IF(G53>0,CONCATENATE("إسترداد ","","",G53," وثيقة"),IF(V53=DATE(YEAR($V$5),COLUMN($L$1)+1,0),CONCATENATE("إعادة تقييم رصيد الوثائق بسعر ","","",$U$37," جنية مصرى"),""))) -> إسترداد 38 وثيقة | V53: 2019-04-16 | X53: 10
A54: 49 | G54: 1 | H54: 332.838 | I54: 332.84 | K54: 331.42 | L54: 1.42 | M54: =IFERROR(IF(AND(V55="",$C$203>(SUM(S53,E54)-SUM(K54))/(SUM(Q53,C54)-SUM(G54)),V54>=DATE(YEAR($V$5),COLUMN($L$1)+1,0)),((SUM(Q53,C54)-SUM(G54))*$C$203)-((SUM(Q53,C54)-SUM(G54))*(R53)),""),"") ->  | O54: 1.42 | Q54: 0 | R54: 0 | S54: 0 | U54: =IF(C54>0,CONCATENATE("شراء ","","",C54," وثيقة"),IF(G54>0,CONCATENATE("إسترداد ","","",G54," وثيقة"),IF(V54=DATE(YEAR($V$5),COLUMN($L$1)+1,0),CONCATENATE("إعادة تقييم رصيد الوثائق بسعر ","","",$U$37," جنية مصرى"),""))) -> إسترداد 1 وثيقة | V54: 2019-04-18 | X54: 11
A55: 50 | C55: 61 | D55: 334.33 | E55: 20394.13 | I55: =IF(G55>0,ROUND(G55*H55,2),"") ->  | M55: =IFERROR(IF(AND(V56="",$C$203>(SUM(S54,E55)-SUM(K55))/(SUM(Q54,C55)-SUM(G55)),V55>=DATE(YEAR($V$5),COLUMN($L$1)+1,0)),((SUM(Q54,C55)-SUM(G55))*$C$203)-((SUM(Q54,C55)-SUM(G55))*(R54)),""),"") ->  | Q55: 61 | R55: 334.33 | S55: 20394.13 | U55: =IF(C55>0,CONCATENATE("شراء ","","",C55," وثيقة"),IF(G55>0,CONCATENATE("إسترداد ","","",G55," وثيقة"),IF(V55=DATE(YEAR($V$5),COLUMN($L$1)+1,0),CONCATENATE("إعادة تقييم رصيد الوثائق بسعر ","","",$U$37," جنية مصرى"),""))) -> شراء 61 وثيقة | V55: 2019-04-30 | X55: 12
A56: 51 | G56: 12 | H56: 334.579 | I56: 4014.95 | K56: 4011.96 | L56: 2.99 | M56: =IFERROR(IF(AND(V57="",$C$203>(SUM(S55,E56)-SUM(K56))/(SUM(Q55,C56)-SUM(G56)),V56>=DATE(YEAR($V$5),COLUMN($L$1)+1,0)),((SUM(Q55,C56)-SUM(G56))*$C$203)-((SUM(Q55,C56)-SUM(G56))*(R55)),""),"") ->  | O56: 0.25 | Q56: 49 | R56: 334.33 | S56: 16382.17 | U56: =IF(C56>0,CONCATENATE("شراء ","","",C56," وثيقة"),IF(G56>0,CONCATENATE("إسترداد ","","",G56," وثيقة"),IF(V56=DATE(YEAR($V$5),COLUMN($L$1)+1,0),CONCATENATE("إعادة تقييم رصيد الوثائق بسعر ","","",$U$37," جنية مصرى"),""))) -> إسترداد 12 وثيقة | V56: 2019-05-02 | X56: 1
A57: 52 | C57: 17 | D57: 334.953 | E57: 5694.2 | M57: =IFERROR(IF(AND(V58="",$C$203>(SUM(S56,E57)-SUM(K57))/(SUM(Q56,C57)-SUM(G57)),V57>=DATE(YEAR($V$5),COLUMN($L$1)+1,0)),((SUM(Q56,C57)-SUM(G57))*$C$203)-((SUM(Q56,C57)-SUM(G57))*(R56)),""),"") ->  | Q57: 66 | R57: 334.4904545 | S57: 22076.37 | U57: =IF(C57>0,CONCATENATE("شراء ","","",C57," وثيقة"),IF(G57>0,CONCATENATE("إسترداد ","","",G57," وثيقة"),IF(V57=DATE(YEAR($V$5),COLUMN($L$1)+1,0),CONCATENATE("إعادة تقييم رصيد الوثائق بسعر ","","",$U$37," جنية مصرى"),""))) -> شراء 17 وثيقة | V57: 2019-05-05 | X57: 2
A58: 53 | C58: 34 | D58: 335.077 | E58: 11392.62 | M58: =IFERROR(IF(AND(V59="",$C$203>(SUM(S57,E58)-SUM(K58))/(SUM(Q57,C58)-SUM(G58)),V58>=DATE(YEAR($V$5),COLUMN($L$1)+1,0)),((SUM(Q57,C58)-SUM(G58))*$C$203)-((SUM(Q57,C58)-SUM(G58))*(R57)),""),"") ->  | Q58: 100 | R58: 334.6899 | S58: 33468.99 | U58: =IF(C58>0,CONCATENATE("شراء ","","",C58," وثيقة"),IF(G58>0,CONCATENATE("إسترداد ","","",G58," وثيقة"),IF(V58=DATE(YEAR($V$5),COLUMN($L$1)+1,0),CONCATENATE("إعادة تقييم رصيد الوثائق بسعر ","","",$U$37," جنية مصرى"),""))) -> شراء 34 وثيقة | V58: 2019-05-06 | X58: 3
A59: 54 | G59: 2 | H59: 335.831 | I59: 671.66 | K59: 669.38 | L59: 2.28 | M59: =IFERROR(IF(AND(V60="",$C$203>(SUM(S58,E59)-SUM(K59))/(SUM(Q58,C59)-SUM(G59)),V59>=DATE(YEAR($V$5),COLUMN($L$1)+1,0)),((SUM(Q58,C59)-SUM(G59))*$C$203)-((SUM(Q58,C59)-SUM(G59))*(R58)),""),"") ->  | O59: 1.14 | Q59: 98 | R59: 334.689898 | S59: 32799.61 | U59: =IF(C59>0,CONCATENATE("شراء ","","",C59," وثيقة"),IF(G59>0,CONCATENATE("إسترداد ","","",G59," وثيقة"),IF(V59=DATE(YEAR($V$5),COLUMN($L$1)+1,0),CONCATENATE("إعادة تقييم رصيد الوثائق بسعر ","","",$U$37," جنية مصرى"),""))) -> إسترداد 2 وثيقة | V59: 2019-05-12 | X59: 4
A60: 55 | G60: 4 | H60: 335.955 | I60: 1343.82 | K60: 1338.76 | L60: 5.06 | M60: =IFERROR(IF(AND(V61="",$C$203>(SUM(S59,E60)-SUM(K60))/(SUM(Q59,C60)-SUM(G60)),V60>=DATE(YEAR($V$5),COLUMN($L$1)+1,0)),((SUM(Q59,C60)-SUM(G60))*$C$203)-((SUM(Q59,C60)-SUM(G60))*(R59)),""),"") ->  | O60: 1.27 | Q60: 94 | R60: 334.6898936 | S60: 31460.85 | U60: =IF(C60>0,CONCATENATE("شراء ","","",C60," وثيقة"),IF(G60>0,CONCATENATE("إسترداد ","","",G60," وثيقة"),IF(V60=DATE(YEAR($V$5),COLUMN($L$1)+1,0),CONCATENATE("إعادة تقييم رصيد الوثائق بسعر ","","",$U$37," جنية مصرى"),""))) -> إسترداد 4 وثيقة | V60: 2019-05-13 | X60: 5
A61: 56 | G61: 1 | H61: 336.203 | I61: 336.2 | K61: 334.69 | L61: 1.51 | M61: =IFERROR(IF(AND(V62="",$C$203>(SUM(S60,E61)-SUM(K61))/(SUM(Q60,C61)-SUM(G61)),V61>=DATE(YEAR($V$5),COLUMN($L$1)+1,0)),((SUM(Q60,C61)-SUM(G61))*$C$203)-((SUM(Q60,C61)-SUM(G61))*(R60)),""),"") ->  | O61: 1.51 | Q61: 93 | R61: 334.6898925 | S61: 31126.16 | U61: =IF(C61>0,CONCATENATE("شراء ","","",C61," وثيقة"),IF(G61>0,CONCATENATE("إسترداد ","","",G61," وثيقة"),IF(V61=DATE(YEAR($V$5),COLUMN($L$1)+1,0),CONCATENATE("إعادة تقييم رصيد الوثائق بسعر ","","",$U$37," جنية مصرى"),""))) -> إسترداد 1 وثيقة | V61: 2019-05-15 | X61: 6
A62: 57 | G62: 15 | H62: 336.329 | I62: 5044.94 | K62: 5020.35 | L62: 24.59 | M62: =IFERROR(IF(AND(V63="",$C$203>(SUM(S61,E62)-SUM(K62))/(SUM(Q61,C62)-SUM(G62)),V62>=DATE(YEAR($V$5),COLUMN($L$1)+1,0)),((SUM(Q61,C62)-SUM(G62))*$C$203)-((SUM(Q61,C62)-SUM(G62))*(R61)),""),"") ->  | O62: 1.64 | Q62: 78 | R62: 334.6898718 | S62: 26105.81 | U62: =IF(C62>0,CONCATENATE("شراء ","","",C62," وثيقة"),IF(G62>0,CONCATENATE("إسترداد ","","",G62," وثيقة"),IF(V62=DATE(YEAR($V$5),COLUMN($L$1)+1,0),CONCATENATE("إعادة تقييم رصيد الوثائق بسعر ","","",$U$37," جنية مصرى"),""))) -> إسترداد 15 وثيقة | V62: 2019-05-16 | X62: 7
A63: 58 | C63: 12 | D63: 336.702 | E63: 4040.42 | M63: =IFERROR(IF(AND(V64="",$C$203>(SUM(S62,E63)-SUM(K63))/(SUM(Q62,C63)-SUM(G63)),V63>=DATE(YEAR($V$5),COLUMN($L$1)+1,0)),((SUM(Q62,C63)-SUM(G63))*$C$203)-((SUM(Q62,C63)-SUM(G63))*(R62)),""),"") ->  | Q63: 90 | R63: 334.9581111 | S63: 30146.23 | U63: =IF(C63>0,CONCATENATE("شراء ","","",C63," وثيقة"),IF(G63>0,CONCATENATE("إسترداد ","","",G63," وثيقة"),IF(V63=DATE(YEAR($V$5),COLUMN($L$1)+1,0),CONCATENATE("إعادة تقييم رصيد الوثائق بسعر ","","",$U$37," جنية مصرى"),""))) -> شراء 12 وثيقة | V63: 2019-05-19 | X63: 8
A64: 59 | G64: 1 | H64: 337.074 | I64: 337.07 | K64: 334.96 | L64: 2.11 | M64: =IFERROR(IF(AND(V65="",$C$203>(SUM(S63,E64)-SUM(K64))/(SUM(Q63,C64)-SUM(G64)),V64>=DATE(YEAR($V$5),COLUMN($L$1)+1,0)),((SUM(Q63,C64)-SUM(G64))*$C$203)-((SUM(Q63,C64)-SUM(G64))*(R63)),""),"") ->  | O64: 2.12 | Q64: 89 | R64: 334.9580899 | S64: 29811.27 | U64: =IF(C64>0,CONCATENATE("شراء ","","",C64," وثيقة"),IF(G64>0,CONCATENATE("إسترداد ","","",G64," وثيقة"),IF(V64=DATE(YEAR($V$5),COLUMN($L$1)+1,0),CONCATENATE("إعادة تقييم رصيد الوثائق بسعر ","","",$U$37," جنية مصرى"),""))) -> إسترداد 1 وثيقة | V64: 2019-05-22 | X64: 9
A65: 60 | G65: 19 | H65: 337.204 | I65: 6406.88 | K65: 6364.2 | L65: 42.68 | M65: =IFERROR(IF(AND(V66="",$C$203>(SUM(S64,E65)-SUM(K65))/(SUM(Q64,C65)-SUM(G65)),V65>=DATE(YEAR($V$5),COLUMN($L$1)+1,0)),((SUM(Q64,C65)-SUM(G65))*$C$203)-((SUM(Q64,C65)-SUM(G65))*(R64)),""),"") ->  | O65: 2.25 | Q65: 70 | R65: 334.9581429 | S65: 23447.07 | U65: =IF(C65>0,CONCATENATE("شراء ","","",C65," وثيقة"),IF(G65>0,CONCATENATE("إسترداد ","","",G65," وثيقة"),IF(V65=DATE(YEAR($V$5),COLUMN($L$1)+1,0),CONCATENATE("إعادة تقييم رصيد الوثائق بسعر ","","",$U$37," جنية مصرى"),""))) -> إسترداد 19 وثيقة | V65: 2019-05-23 | X65: 10
A66: 61 | G66: 12 | H66: 337.576 | I66: 4050.91 | K66: 4019.5 | L66: 31.41 | M66: =IFERROR(IF(AND(V67="",$C$203>(SUM(S65,E66)-SUM(K66))/(SUM(Q65,C66)-SUM(G66)),V66>=DATE(YEAR($V$5),COLUMN($L$1)+1,0)),((SUM(Q65,C66)-SUM(G66))*$C$203)-((SUM(Q65,C66)-SUM(G66))*(R65)),""),"") ->  | O66: 2.62 | Q66: 58 | R66: 334.9581034 | S66: 19427.57 | U66: =IF(C66>0,CONCATENATE("شراء ","","",C66," وثيقة"),IF(G66>0,CONCATENATE("إسترداد ","","",G66," وثيقة"),IF(V66=DATE(YEAR($V$5),COLUMN($L$1)+1,0),CONCATENATE("إعادة تقييم رصيد الوثائق بسعر ","","",$U$37," جنية مصرى"),""))) -> إسترداد 12 وثيقة | V66: 2019-05-26 | X66: 11
A67: 62 | G67: 57 | H67: 337.7 | I67: 19248.9 | K67: 19092.61 | L67: 156.29 | M67: =IFERROR(IF(AND(V68="",$C$203>(SUM(S66,E67)-SUM(K67))/(SUM(Q66,C67)-SUM(G67)),V67>=DATE(YEAR($V$5),COLUMN($L$1)+1,0)),((SUM(Q66,C67)-SUM(G67))*$C$203)-((SUM(Q66,C67)-SUM(G67))*(R66)),""),"") ->  | O67: 2.74 | Q67: 1 | R67: 334.96 | S67: 334.96 | U67: =IF(C67>0,CONCATENATE("شراء ","","",C67," وثيقة"),IF(G67>0,CONCATENATE("إسترداد ","","",G67," وثيقة"),IF(V67=DATE(YEAR($V$5),COLUMN($L$1)+1,0),CONCATENATE("إعادة تقييم رصيد الوثائق بسعر ","","",$U$37," جنية مصرى"),""))) -> إسترداد 57 وثيقة | V67: 2019-05-27 | X67: 12
A68: 63 | C68: 9 | D68: 341.422 | E68: 3072.8 | M68: =IFERROR(IF(AND(V69="",$C$203>(SUM(S67,E68)-SUM(K68))/(SUM(Q67,C68)-SUM(G68)),V68>=DATE(YEAR($V$5),COLUMN($L$1)+1,0)),((SUM(Q67,C68)-SUM(G68))*$C$203)-((SUM(Q67,C68)-SUM(G68))*(R67)),""),"") ->  | Q68: 10 | R68: 340.776 | S68: 3407.76 | U68: =IF(C68>0,CONCATENATE("شراء ","","",C68," وثيقة"),IF(G68>0,CONCATENATE("إسترداد ","","",G68," وثيقة"),IF(V68=DATE(YEAR($V$5),COLUMN($L$1)+1,0),CONCATENATE("إعادة تقييم رصيد الوثائق بسعر ","","",$U$37," جنية مصرى"),""))) -> شراء 9 وثيقة | V68: 2019-06-26 | X68: 1
A69: 64 | C69: 11 | D69: 341.545 | E69: 3757 | M69: =IFERROR(IF(AND(V70="",$C$203>(SUM(S68,E69)-SUM(K69))/(SUM(Q68,C69)-SUM(G69)),V69>=DATE(YEAR($V$5),COLUMN($L$1)+1,0)),((SUM(Q68,C69)-SUM(G69))*$C$203)-((SUM(Q68,C69)-SUM(G69))*(R68)),""),"") ->  | Q69: 21 | R69: 341.1790476 | S69: 7164.76 | U69: =IF(C69>0,CONCATENATE("شراء ","","",C69," وثيقة"),IF(G69>0,CONCATENATE("إسترداد ","","",G69," وثيقة"),IF(V69=DATE(YEAR($V$5),COLUMN($L$1)+1,0),CONCATENATE("إعادة تقييم رصيد الوثائق بسعر ","","",$U$37," جنية مصرى"),""))) -> شراء 11 وثيقة | V69: 2019-06-27 | X69: 2
A70: 65 | C70: 38 | D70: 342.159 | E70: 13002.04 | M70: =IFERROR(IF(AND(V71="",$C$203>(SUM(S69,E70)-SUM(K70))/(SUM(Q69,C70)-SUM(G70)),V70>=DATE(YEAR($V$5),COLUMN($L$1)+1,0)),((SUM(Q69,C70)-SUM(G70))*$C$203)-((SUM(Q69,C70)-SUM(G70))*(R69)),""),"") ->  | Q70: 59 | R70: 341.8101695 | S70: =ROUND(SUM(S69,E70,M70)-SUM(K70),100) -> 20166.8 | U70: =IF(C70>0,CONCATENATE("شراء ","","",C70," وثيقة"),IF(G70>0,CONCATENATE("إسترداد ","","",G70," وثيقة"),IF(V70=DATE(YEAR($V$5),COLUMN($L$1)+1,0),CONCATENATE("إعادة تقييم رصيد الوثائق بسعر ","","",$U$37," جنية مصرى"),""))) -> شراء 38 وثيقة | V70: 2019-07-02 | X70: =IF($V70="","",IFERROR(IF(MONTH($V70)=MONTH($V69),$X69+1,1),1)) -> 1
A71: =IF(V71>0,ROW()-5,"") -> 66 | G71: 36 | H71: 342.405 | I71: 12326.58 | K71: 12305.17 | L71: 21.41 | M71: =IFERROR(IF(AND(V72="",$C$203>(SUM(S70,E71)-SUM(K71))/(SUM(Q70,C71)-SUM(G71)),V71>=DATE(YEAR($V$5),COLUMN($L$1)+1,0)),((SUM(Q70,C71)-SUM(G71))*$C$203)-((SUM(Q70,C71)-SUM(G71))*(R70)),""),"") ->  | O71: 0.59 | Q71: 23 | R71: 341.81 | S71: 7861.63 | U71: =IF(C71>0,CONCATENATE("شراء ","","",C71," وثيقة"),IF(G71>0,CONCATENATE("إسترداد ","","",G71," وثيقة"),IF(V71=DATE(YEAR($V$5),COLUMN($L$1)+1,0),CONCATENATE("إعادة تقييم رصيد الوثائق بسعر ","","",$U$37," جنية مصرى"),""))) -> إسترداد 36 وثيقة | V71: 2019-07-04 | X71: 2
A72: =IF(V72>0,ROW()-5,"") -> 67 | E72: =IF(C72>0,ROUND(C72*D72,2),"") ->  | G72: 2 | H72: 342.774 | I72: =IF(G72>0,ROUND(G72*H72,2),"") -> 685.55 | K72: =IFERROR(IF(G72>0,ROUND(G72*R71,2),""),"") -> 683.62 | L72: =IFERROR(IF(G72>0,ROUND(I72-K72,2),""),"") -> 1.93 | M72: =IFERROR(IF(AND(V73="",$C$203>(SUM(S71,E72)-SUM(K72))/(SUM(Q71,C72)-SUM(G72)),V72>=DATE(YEAR($V$5),COLUMN($L$1)+1,0)),((SUM(Q71,C72)-SUM(G72))*$C$203)-((SUM(Q71,C72)-SUM(G72))*(R71)),""),"") ->  | O72: =IF(H72>0,ROUND(H72-R71,2),"") -> 0.96 | Q72: =Q71+C72-G72 -> 21 | R72: =IF(Q72>0,ROUND(S72/Q72,100),0) -> 341.81 | S72: =ROUND(SUM(S71,E72,M72)-SUM(K72),100) -> 7178.01 | U72: =IF(C72>0,CONCATENATE("شراء ","","",C72," وثيقة"),IF(G72>0,CONCATENATE("إسترداد ","","",G72," وثيقة"),IF(V72=DATE(YEAR($V$5),COLUMN($L$1)+1,0),CONCATENATE("إعادة تقييم رصيد الوثائق بسعر ","","",$U$37," جنية مصرى"),""))) -> إسترداد 2 وثيقة | V72: 2019-07-07 | X72: 3
A73: 68 | G73: 2 | H73: 342.897 | I73: 685.79 | K73: 683.62 | L73: 2.17 | M73: =IFERROR(IF(AND(V74="",$C$203>(SUM(S72,E73)-SUM(K73))/(SUM(Q72,C73)-SUM(G73)),V73>=DATE(YEAR($V$5),COLUMN($L$1)+1,0)),((SUM(Q72,C73)-SUM(G73))*$C$203)-((SUM(Q72,C73)-SUM(G73))*(R72)),""),"") ->  | O73: 1.09 | Q73: 19 | R73: 341.81 | S73: 6494.39 | U73: =IF(C73>0,CONCATENATE("شراء ","","",C73," وثيقة"),IF(G73>0,CONCATENATE("إسترداد ","","",G73," وثيقة"),IF(V73=DATE(YEAR($V$5),COLUMN($L$1)+1,0),CONCATENATE("إعادة تقييم رصيد الوثائق بسعر ","","",$U$37," جنية مصرى"),""))) -> إسترداد 2 وثيقة | V73: 2019-07-08 | X73: 4
A74: =IF(V74>0,ROW()-5,"") -> 69 | E74: =IF(C74>0,ROUND(C74*D74,2),"") ->  | G74: 19 | H74: 343.02 | I74: =IF(G74>0,ROUND(G74*H74,2),"") -> 6517.38 | K74: =IFERROR(IF(G74>0,ROUND(G74*R73,2),""),"") -> 6494.39 | L74: =IFERROR(IF(G74>0,ROUND(I74-K74,2),""),"") -> 22.99 | M74: =IFERROR(IF(AND(V75="",$C$203>(SUM(S73,E74)-SUM(K74))/(SUM(Q73,C74)-SUM(G74)),V74>=DATE(YEAR($V$5),COLUMN($L$1)+1,0)),((SUM(Q73,C74)-SUM(G74))*$C$203)-((SUM(Q73,C74)-SUM(G74))*(R73)),""),"") ->  | O74: =IF(H74>0,ROUND(H74-R73,2),"") -> 1.21 | Q74: =Q73+C74-G74 -> 0 | R74: =IF(Q74>0,ROUND(S74/Q74,100),0) -> 0 | S74: =ROUND(SUM(S73,E74,M74)-SUM(K74),100) -> 0 | U74: =IF(C74>0,CONCATENATE("شراء ","","",C74," وثيقة"),IF(G74>0,CONCATENATE("إسترداد ","","",G74," وثيقة"),IF(V74=DATE(YEAR($V$5),COLUMN($L$1)+1,0),CONCATENATE("إعادة تقييم رصيد الوثائق بسعر ","","",$U$37," جنية مصرى"),""))) -> إسترداد 19 وثيقة | V74: 2019-07-09 | X74: 5
A75: 70 | C75: 49 | D75: 345.727 | E75: 16940.62 | M75: =IFERROR(IF(AND(V76="",$C$203>(SUM(S74,E75)-SUM(K75))/(SUM(Q74,C75)-SUM(G75)),V75>=DATE(YEAR($V$5),COLUMN($L$1)+1,0)),((SUM(Q74,C75)-SUM(G75))*$C$203)-((SUM(Q74,C75)-SUM(G75))*(R74)),""),"") ->  | Q75: 49 | R75: 345.7269388 | S75: 16940.62 | U75: =IF(C75>0,CONCATENATE("شراء ","","",C75," وثيقة"),IF(G75>0,CONCATENATE("إسترداد ","","",G75," وثيقة"),IF(V75=DATE(YEAR($V$5),COLUMN($L$1)+1,0),CONCATENATE("إعادة تقييم رصيد الوثائق بسعر ","","",$U$37," جنية مصرى"),""))) -> شراء 49 وثيقة | V75: 2019-07-31 | X75: 6
A76: 71 | G76: 7 | H76: 345.85 | I76: 2420.95 | K76: 2420.09 | L76: 0.86 | M76: =IFERROR(IF(AND(V77="",$C$203>(SUM(S75,E76)-SUM(K76))/(SUM(Q75,C76)-SUM(G76)),V76>=DATE(YEAR($V$5),COLUMN($L$1)+1,0)),((SUM(Q75,C76)-SUM(G76))*$C$203)-((SUM(Q75,C76)-SUM(G76))*(R75)),""),"") ->  | O76: 0.12 | Q76: 42 | R76: 345.7269048 | S76: 14520.53 | U76: =IF(C76>0,CONCATENATE("شراء ","","",C76," وثيقة"),IF(G76>0,CONCATENATE("إسترداد ","","",G76," وثيقة"),IF(V76=DATE(YEAR($V$5),COLUMN($L$1)+1,0),CONCATENATE("إعادة تقييم رصيد الوثائق بسعر ","","",$U$37," جنية مصرى"),""))) -> إسترداد 7 وثيقة | V76: 2019-08-01 | X76: 1
A77: 72 | G77: 13 | H77: 346.222 | I77: 4500.89 | K77: 4494.45 | L77: 6.44 | M77: =IFERROR(IF(AND(V78="",$C$203>(SUM(S76,E77)-SUM(K77))/(SUM(Q76,C77)-SUM(G77)),V77>=DATE(YEAR($V$5),COLUMN($L$1)+1,0)),((SUM(Q76,C77)-SUM(G77))*$C$203)-((SUM(Q76,C77)-SUM(G77))*(R76)),""),"") ->  | O77: 0.5 | Q77: 29 | R77: 345.7268966 | S77: 10026.08 | U77: =IF(C77>0,CONCATENATE("شراء ","","",C77," وثيقة"),IF(G77>0,CONCATENATE("إسترداد ","","",G77," وثيقة"),IF(V77=DATE(YEAR($V$5),COLUMN($L$1)+1,0),CONCATENATE("إعادة تقييم رصيد الوثائق بسعر ","","",$U$37," جنية مصرى"),""))) -> إسترداد 13 وثيقة | V77: 2019-08-04 | X77: 2
A78: 73 | C78: 25 | D78: 346.468 | E78: 8661.7 | M78: =IFERROR(IF(AND(V79="",$C$203>(SUM(S77,E78)-SUM(K78))/(SUM(Q77,C78)-SUM(G78)),V78>=DATE(YEAR($V$5),COLUMN($L$1)+1,0)),((SUM(Q77,C78)-SUM(G78))*$C$203)-((SUM(Q77,C78)-SUM(G78))*(R77)),""),"") ->  | Q78: 54 | R78: 346.07 | S78: 18687.78 | U78: =IF(C78>0,CONCATENATE("شراء ","","",C78," وثيقة"),IF(G78>0,CONCATENATE("إسترداد ","","",G78," وثيقة"),IF(V78=DATE(YEAR($V$5),COLUMN($L$1)+1,0),CONCATENATE("إعادة تقييم رصيد الوثائق بسعر ","","",$U$37," جنية مصرى"),""))) -> شراء 25 وثيقة | V78: 2019-08-06 | X78: 3
A79: 74 | C79: 2 | D79: 346.592 | E79: 693.18 | M79: =IFERROR(IF(AND(V80="",$C$203>(SUM(S78,E79)-SUM(K79))/(SUM(Q78,C79)-SUM(G79)),V79>=DATE(YEAR($V$5),COLUMN($L$1)+1,0)),((SUM(Q78,C79)-SUM(G79))*$C$203)-((SUM(Q78,C79)-SUM(G79))*(R78)),""),"") ->  | Q79: 56 | R79: 346.0885714 | S79: 19380.96 | U79: =IF(C79>0,CONCATENATE("شراء ","","",C79," وثيقة"),IF(G79>0,CONCATENATE("إسترداد ","","",G79," وثيقة"),IF(V79=DATE(YEAR($V$5),COLUMN($L$1)+1,0),CONCATENATE("إعادة تقييم رصيد الوثائق بسعر ","","",$U$37," جنية مصرى"),""))) -> شراء 2 وثيقة | V79: 2019-08-07 | X79: 4
A80: 75 | C80: 6 | D80: 346.715 | E80: 2080.29 | M80: =IFERROR(IF(AND(V81="",$C$203>(SUM(S79,E80)-SUM(K80))/(SUM(Q79,C80)-SUM(G80)),V80>=DATE(YEAR($V$5),COLUMN($L$1)+1,0)),((SUM(Q79,C80)-SUM(G80))*$C$203)-((SUM(Q79,C80)-SUM(G80))*(R79)),""),"") ->  | Q80: 62 | R80: 346.1491935 | S80: 21461.25 | U80: =IF(C80>0,CONCATENATE("شراء ","","",C80," وثيقة"),IF(G80>0,CONCATENATE("إسترداد ","","",G80," وثيقة"),IF(V80=DATE(YEAR($V$5),COLUMN($L$1)+1,0),CONCATENATE("إعادة تقييم رصيد الوثائق بسعر ","","",$U$37," جنية مصرى"),""))) -> شراء 6 وثيقة | V80: 2019-08-08 | X80: 5
A81: 76 | G81: 1 | H81: 347.95 | I81: 347.95 | K81: 346.15 | L81: 1.8 | M81: =IFERROR(IF(AND(V82="",$C$203>(SUM(S80,E81)-SUM(K81))/(SUM(Q80,C81)-SUM(G81)),V81>=DATE(YEAR($V$5),COLUMN($L$1)+1,0)),((SUM(Q80,C81)-SUM(G81))*$C$203)-((SUM(Q80,C81)-SUM(G81))*(R80)),""),"") ->  | O81: 1.8 | Q81: 61 | R81: 346.1491803 | S81: 21115.1 | U81: =IF(C81>0,CONCATENATE("شراء ","","",C81," وثيقة"),IF(G81>0,CONCATENATE("إسترداد ","","",G81," وثيقة"),IF(V81=DATE(YEAR($V$5),COLUMN($L$1)+1,0),CONCATENATE("إعادة تقييم رصيد الوثائق بسعر ","","",$U$37," جنية مصرى"),""))) -> إسترداد 1 وثيقة | V81: 2019-08-18 | X81: 6
A82: 77 | G82: 2 | H82: 348.444 | I82: 696.89 | K82: 692.3 | L82: 4.59 | M82: =IFERROR(IF(AND(V83="",$C$203>(SUM(S81,E82)-SUM(K82))/(SUM(Q81,C82)-SUM(G82)),V82>=DATE(YEAR($V$5),COLUMN($L$1)+1,0)),((SUM(Q81,C82)-SUM(G82))*$C$203)-((SUM(Q81,C82)-SUM(G82))*(R81)),""),"") ->  | O82: 2.29 | Q82: 59 | R82: 346.1491525 | S82: 20422.8 | U82: =IF(C82>0,CONCATENATE("شراء ","","",C82," وثيقة"),IF(G82>0,CONCATENATE("إسترداد ","","",G82," وثيقة"),IF(V82=DATE(YEAR($V$5),COLUMN($L$1)+1,0),CONCATENATE("إعادة تقييم رصيد الوثائق بسعر ","","",$U$37," جنية مصرى"),""))) -> إسترداد 2 وثيقة | V82: 2019-08-22 | X82: 7
A83: 78 | C83: 19 | D83: 351.65 | E83: 6681.35 | M83: =IFERROR(IF(AND(V84="",$C$203>(SUM(S82,E83)-SUM(K83))/(SUM(Q82,C83)-SUM(G83)),V83>=DATE(YEAR($V$5),COLUMN($L$1)+1,0)),((SUM(Q82,C83)-SUM(G83))*$C$203)-((SUM(Q82,C83)-SUM(G83))*(R82)),""),"") ->  | Q83: 78 | R83: 347.4891026 | S83: 27104.15 | U83: =IF(C83>0,CONCATENATE("شراء ","","",C83," وثيقة"),IF(G83>0,CONCATENATE("إسترداد ","","",G83," وثيقة"),IF(V83=DATE(YEAR($V$5),COLUMN($L$1)+1,0),CONCATENATE("إعادة تقييم رصيد الوثائق بسعر ","","",$U$37," جنية مصرى"),""))) -> شراء 19 وثيقة | V83: 2019-09-17 | X83: 1
A84: 79 | C84: 43 | D84: 351.773 | E84: 15126.24 | M84: =IFERROR(IF(AND(V85="",$C$203>(SUM(S83,E84)-SUM(K84))/(SUM(Q83,C84)-SUM(G84)),V84>=DATE(YEAR($V$5),COLUMN($L$1)+1,0)),((SUM(Q83,C84)-SUM(G84))*$C$203)-((SUM(Q83,C84)-SUM(G84))*(R83)),""),"") ->  | Q84: 121 | R84: 349.0114876 | S84: 42230.39 | U84: =IF(C84>0,CONCATENATE("شراء ","","",C84," وثيقة"),IF(G84>0,CONCATENATE("إسترداد ","","",G84," وثيقة"),IF(V84=DATE(YEAR($V$5),COLUMN($L$1)+1,0),CONCATENATE("إعادة تقييم رصيد الوثائق بسعر ","","",$U$37," جنية مصرى"),""))) -> شراء 43 وثيقة | V84: 2019-09-18 | X84: 2
A85: 80 | G85: 9 | H85: 351.896 | I85: 3167.06 | K85: 3141.1 | L85: 25.96 | M85: =IFERROR(IF(AND(V86="",$C$203>(SUM(S84,E85)-SUM(K85))/(SUM(Q84,C85)-SUM(G85)),V85>=DATE(YEAR($V$5),COLUMN($L$1)+1,0)),((SUM(Q84,C85)-SUM(G85))*$C$203)-((SUM(Q84,C85)-SUM(G85))*(R84)),""),"") ->  | O85: 2.88 | Q85: 112 | R85: 349.0115179 | S85: 39089.29 | U85: =IF(C85>0,CONCATENATE("شراء ","","",C85," وثيقة"),IF(G85>0,CONCATENATE("إسترداد ","","",G85," وثيقة"),IF(V85=DATE(YEAR($V$5),COLUMN($L$1)+1,0),CONCATENATE("إعادة تقييم رصيد الوثائق بسعر ","","",$U$37," جنية مصرى"),""))) -> إسترداد 9 وثيقة | V85: 2019-09-19 | X85: 3
A86: 81 | G86: 2 | H86: 352.263 | I86: 704.53 | K86: 698.02 | L86: 6.51 | M86: =IFERROR(IF(AND(V87="",$C$203>(SUM(S85,E86)-SUM(K86))/(SUM(Q85,C86)-SUM(G86)),V86>=DATE(YEAR($V$5),COLUMN($L$1)+1,0)),((SUM(Q85,C86)-SUM(G86))*$C$203)-((SUM(Q85,C86)-SUM(G86))*(R85)),""),"") ->  | O86: 3.25 | Q86: 110 | R86: 349.0115455 | S86: 38391.27 | U86: =IF(C86>0,CONCATENATE("شراء ","","",C86," وثيقة"),IF(G86>0,CONCATENATE("إسترداد ","","",G86," وثيقة"),IF(V86=DATE(YEAR($V$5),COLUMN($L$1)+1,0),CONCATENATE("إعادة تقييم رصيد الوثائق بسعر ","","",$U$37," جنية مصرى"),""))) -> إسترداد 2 وثيقة | V86: 2019-09-22 | X86: 4
A87: 82 | C87: 2 | D87: 352.508 | E87: 705.02 | M87: =IFERROR(IF(AND(V88="",$C$203>(SUM(S86,E87)-SUM(K87))/(SUM(Q86,C87)-SUM(G87)),V87>=DATE(YEAR($V$5),COLUMN($L$1)+1,0)),((SUM(Q86,C87)-SUM(G87))*$C$203)-((SUM(Q86,C87)-SUM(G87))*(R86)),""),"") ->  | Q87: 112 | R87: 349.0740179 | S87: 39096.29 | U87: =IF(C87>0,CONCATENATE("شراء ","","",C87," وثيقة"),IF(G87>0,CONCATENATE("إسترداد ","","",G87," وثيقة"),IF(V87=DATE(YEAR($V$5),COLUMN($L$1)+1,0),CONCATENATE("إعادة تقييم رصيد الوثائق بسعر ","","",$U$37," جنية مصرى"),""))) -> شراء 2 وثيقة | V87: 2019-09-24 | X87: 5
A88: 83 | G88: 6 | H88: 352.753 | I88: 2116.52 | K88: 2094.44 | L88: 22.08 | M88: =IFERROR(IF(AND(V89="",$C$203>(SUM(S87,E88)-SUM(K88))/(SUM(Q87,C88)-SUM(G88)),V88>=DATE(YEAR($V$5),COLUMN($L$1)+1,0)),((SUM(Q87,C88)-SUM(G88))*$C$203)-((SUM(Q87,C88)-SUM(G88))*(R87)),""),"") ->  | O88: 3.68 | Q88: 106 | R88: 349.0740566 | S88: 37001.85 | U88: =IF(C88>0,CONCATENATE("شراء ","","",C88," وثيقة"),IF(G88>0,CONCATENATE("إسترداد ","","",G88," وثيقة"),IF(V88=DATE(YEAR($V$5),COLUMN($L$1)+1,0),CONCATENATE("إعادة تقييم رصيد الوثائق بسعر ","","",$U$37," جنية مصرى"),""))) -> إسترداد 6 وثيقة | V88: 2019-09-26 | X88: 6
A89: 84 | C89: 59 | D89: 353.12 | E89: 20834.08 | M89: =IFERROR(IF(AND(V90="",$C$203>(SUM(S88,E89)-SUM(K89))/(SUM(Q88,C89)-SUM(G89)),V89>=DATE(YEAR($V$5),COLUMN($L$1)+1,0)),((SUM(Q88,C89)-SUM(G89))*$C$203)-((SUM(Q88,C89)-SUM(G89))*(R88)),""),"") ->  | Q89: 165 | R89: 350.5207879 | S89: 57835.93 | U89: =IF(C89>0,CONCATENATE("شراء ","","",C89," وثيقة"),IF(G89>0,CONCATENATE("إسترداد ","","",G89," وثيقة"),IF(V89=DATE(YEAR($V$5),COLUMN($L$1)+1,0),CONCATENATE("إعادة تقييم رصيد الوثائق بسعر ","","",$U$37," جنية مصرى"),""))) -> شراء 59 وثيقة | V89: 2019-09-29 | X89: 7
A90: 85 | C90: 54 | D90: 353.241 | E90: 19075.01 | M90: =IFERROR(IF(AND(V91="",$C$203>(SUM(S89,E90)-SUM(K90))/(SUM(Q89,C90)-SUM(G90)),V90>=DATE(YEAR($V$5),COLUMN($L$1)+1,0)),((SUM(Q89,C90)-SUM(G90))*$C$203)-((SUM(Q89,C90)-SUM(G90))*(R89)),""),"") ->  | Q90: 219 | R90: 351.1915068 | S90: 76910.94 | U90: =IF(C90>0,CONCATENATE("شراء ","","",C90," وثيقة"),IF(G90>0,CONCATENATE("إسترداد ","","",G90," وثيقة"),IF(V90=DATE(YEAR($V$5),COLUMN($L$1)+1,0),CONCATENATE("إعادة تقييم رصيد الوثائق بسعر ","","",$U$37," جنية مصرى"),""))) -> شراء 54 وثيقة | V90: 2019-09-30 | X90: 8
A91: 86 | G91: 14 | H91: 353.368 | I91: 4947.15 | K91: 4916.68 | L91: 30.47 | M91: =IFERROR(IF(AND(V92="",$C$203>(SUM(S90,E91)-SUM(K91))/(SUM(Q90,C91)-SUM(G91)),V91>=DATE(YEAR($V$5),COLUMN($L$1)+1,0)),((SUM(Q90,C91)-SUM(G91))*$C$203)-((SUM(Q90,C91)-SUM(G91))*(R90)),""),"") ->  | O91: 2.18 | Q91: 205 | R91: 351.1915122 | S91: 71994.26 | U91: =IF(C91>0,CONCATENATE("شراء ","","",C91," وثيقة"),IF(G91>0,CONCATENATE("إسترداد ","","",G91," وثيقة"),IF(V91=DATE(YEAR($V$5),COLUMN($L$1)+1,0),CONCATENATE("إعادة تقييم رصيد الوثائق بسعر ","","",$U$37," جنية مصرى"),""))) -> إسترداد 14 وثيقة | V91: 2019-10-01 | X91: 1
A92: 87 | G92: 19 | H92: 353.619 | I92: 6718.76 | K92: 6672.64 | L92: 46.12 | M92: =IFERROR(IF(AND(V93="",$C$203>(SUM(S91,E92)-SUM(K92))/(SUM(Q91,C92)-SUM(G92)),V92>=DATE(YEAR($V$5),COLUMN($L$1)+1,0)),((SUM(Q91,C92)-SUM(G92))*$C$203)-((SUM(Q91,C92)-SUM(G92))*(R91)),""),"") ->  | O92: 2.43 | Q92: 186 | R92: 351.1915054 | S92: 65321.62 | U92: =IF(C92>0,CONCATENATE("شراء ","","",C92," وثيقة"),IF(G92>0,CONCATENATE("إسترداد ","","",G92," وثيقة"),IF(V92=DATE(YEAR($V$5),COLUMN($L$1)+1,0),CONCATENATE("إعادة تقييم رصيد الوثائق بسعر ","","",$U$37," جنية مصرى"),""))) -> إسترداد 19 وثيقة | V92: 2019-10-03 | X92: 2
A93: 88 | G93: 1 | H93: 354.219 | I93: 354.22 | K93: 351.19 | L93: 3.03 | M93: =IFERROR(IF(AND(V94="",$C$203>(SUM(S92,E93)-SUM(K93))/(SUM(Q92,C93)-SUM(G93)),V93>=DATE(YEAR($V$5),COLUMN($L$1)+1,0)),((SUM(Q92,C93)-SUM(G93))*$C$203)-((SUM(Q92,C93)-SUM(G93))*(R92)),""),"") ->  | O93: 3.03 | Q93: 185 | R93: 351.1915135 | S93: 64970.43 | U93: =IF(C93>0,CONCATENATE("شراء ","","",C93," وثيقة"),IF(G93>0,CONCATENATE("إسترداد ","","",G93," وثيقة"),IF(V93=DATE(YEAR($V$5),COLUMN($L$1)+1,0),CONCATENATE("إعادة تقييم رصيد الوثائق بسعر ","","",$U$37," جنية مصرى"),""))) -> إسترداد 1 وثيقة | V93: 2019-10-08 | X93: 3
A94: 89 | G94: 90 | H94: 354.219 | I94: 31879.71 | K94: 31607.24 | L94: 272.47 | M94: =IFERROR(IF(AND(V95="",$C$203>(SUM(S93,E94)-SUM(K94))/(SUM(Q93,C94)-SUM(G94)),V94>=DATE(YEAR($V$5),COLUMN($L$1)+1,0)),((SUM(Q93,C94)-SUM(G94))*$C$203)-((SUM(Q93,C94)-SUM(G94))*(R93)),""),"") ->  | O94: 3.03 | Q94: 95 | R94: 351.1914737 | S94: 33363.19 | U94: =IF(C94>0,CONCATENATE("شراء ","","",C94," وثيقة"),IF(G94>0,CONCATENATE("إسترداد ","","",G94," وثيقة"),IF(V94=DATE(YEAR($V$5),COLUMN($L$1)+1,0),CONCATENATE("إعادة تقييم رصيد الوثائق بسعر ","","",$U$37," جنية مصرى"),""))) -> إسترداد 90 وثيقة | V94: 2019-10-08 | X94: 4
A95: 90 | G95: 1 | H95: 354.34 | I95: 354.34 | K95: 351.19 | L95: 3.15 | M95: =IFERROR(IF(AND(V96="",$C$203>(SUM(S94,E95)-SUM(K95))/(SUM(Q94,C95)-SUM(G95)),V95>=DATE(YEAR($V$5),COLUMN($L$1)+1,0)),((SUM(Q94,C95)-SUM(G95))*$C$203)-((SUM(Q94,C95)-SUM(G95))*(R94)),""),"") ->  | O95: 3.15 | Q95: 94 | R95: 351.1914894 | S95: 33012 | U95: =IF(C95>0,CONCATENATE("شراء ","","",C95," وثيقة"),IF(G95>0,CONCATENATE("إسترداد ","","",G95," وثيقة"),IF(V95=DATE(YEAR($V$5),COLUMN($L$1)+1,0),CONCATENATE("إعادة تقييم رصيد الوثائق بسعر ","","",$U$37," جنية مصرى"),""))) -> إسترداد 1 وثيقة | V95: 2019-10-09 | X95: 5
A96: 91 | G96: 3 | H96: 354.461 | I96: 1063.38 | K96: 1053.57 | L96: 9.81 | M96: =IFERROR(IF(AND(V97="",$C$203>(SUM(S95,E96)-SUM(K96))/(SUM(Q95,C96)-SUM(G96)),V96>=DATE(YEAR($V$5),COLUMN($L$1)+1,0)),((SUM(Q95,C96)-SUM(G96))*$C$203)-((SUM(Q95,C96)-SUM(G96))*(R95)),""),"") ->  | O96: 3.27 | Q96: 91 | R96: 351.1915385 | S96: 31958.43 | U96: =IF(C96>0,CONCATENATE("شراء ","","",C96," وثيقة"),IF(G96>0,CONCATENATE("إسترداد ","","",G96," وثيقة"),IF(V96=DATE(YEAR($V$5),COLUMN($L$1)+1,0),CONCATENATE("إعادة تقييم رصيد الوثائق بسعر ","","",$U$37," جنية مصرى"),""))) -> إسترداد 3 وثيقة | V96: 2019-10-10 | X96: 6
A97: 92 | G97: 1 | H97: 355.062 | I97: 355.06 | K97: 351.19 | L97: 3.87 | M97: =IFERROR(IF(AND(V98="",$C$203>(SUM(S96,E97)-SUM(K97))/(SUM(Q96,C97)-SUM(G97)),V97>=DATE(YEAR($V$5),COLUMN($L$1)+1,0)),((SUM(Q96,C97)-SUM(G97))*$C$203)-((SUM(Q96,C97)-SUM(G97))*(R96)),""),"") ->  | O97: 3.87 | Q97: 90 | R97: 351.1915556 | S97: 31607.24 | U97: =IF(C97>0,CONCATENATE("شراء ","","",C97," وثيقة"),IF(G97>0,CONCATENATE("إسترداد ","","",G97," وثيقة"),IF(V97=DATE(YEAR($V$5),COLUMN($L$1)+1,0),CONCATENATE("إعادة تقييم رصيد الوثائق بسعر ","","",$U$37," جنية مصرى"),""))) -> إسترداد 1 وثيقة | V97: 2019-10-15 | X97: 7
M98: =IFERROR(IF(AND(V99="",$C$203>(SUM(S97,E98)-SUM(K98))/(SUM(Q97,C98)-SUM(G98)),V98>=DATE(YEAR($V$5),COLUMN($L$1)+1,0)),((SUM(Q97,C98)-SUM(G98))*$C$203)-((SUM(Q97,C98)-SUM(G98))*(R97)),""),"") ->  | Q98: 90 | R98: 351.1915556 | S98: 31607.24 | U98: =IF(C98>0,CONCATENATE("شراء ","","",C98," وثيقة"),IF(G98>0,CONCATENATE("إسترداد ","","",G98," وثيقة"),IF(V98=DATE(YEAR($V$5),COLUMN($L$1)+1,0),CONCATENATE("إعادة تقييم رصيد الوثائق بسعر ","","",$U$37," جنية مصرى"),""))) -> 
M99: =IFERROR(IF(AND(V100="",$C$203>(SUM(S98,E99)-SUM(K99))/(SUM(Q98,C99)-SUM(G99)),V99>=DATE(YEAR($V$5),COLUMN($L$1)+1,0)),((SUM(Q98,C99)-SUM(G99))*$C$203)-((SUM(Q98,C99)-SUM(G99))*(R98)),""),"") ->  | Q99: 90 | R99: 351.1915556 | S99: 31607.24 | U99: =IF(C99>0,CONCATENATE("شراء ","","",C99," وثيقة"),IF(G99>0,CONCATENATE("إسترداد ","","",G99," وثيقة"),IF(V99=DATE(YEAR($V$5),COLUMN($L$1)+1,0),CONCATENATE("إعادة تقييم رصيد الوثائق بسعر ","","",$U$37," جنية مصرى"),""))) -> 
M100: =IFERROR(IF(AND(V101="",$C$203>(SUM(S99,E100)-SUM(K100))/(SUM(Q99,C100)-SUM(G100)),V100>=DATE(YEAR($V$5),COLUMN($L$1)+1,0)),((SUM(Q99,C100)-SUM(G100))*$C$203)-((SUM(Q99,C100)-SUM(G100))*(R99)),""),"") ->  | Q100: 90 | R100: 351.1915556 | S100: 31607.24 | U100: =IF(C100>0,CONCATENATE("شراء ","","",C100," وثيقة"),IF(G100>0,CONCATENATE("إسترداد ","","",G100," وثيقة"),IF(V100=DATE(YEAR($V$5),COLUMN($L$1)+1,0),CONCATENATE("إعادة تقييم رصيد الوثائق بسعر ","","",$U$37," جنية مصرى"),""))) -> 
M101: =IFERROR(IF(AND(V102="",$C$203>(SUM(S100,E101)-SUM(K101))/(SUM(Q100,C101)-SUM(G101)),V101>=DATE(YEAR($V$5),COLUMN($L$1)+1,0)),((SUM(Q100,C101)-SUM(G101))*$C$203)-((SUM(Q100,C101)-SUM(G101))*(R100)),""),"") ->  | Q101: 90 | R101: 351.1915556 | S101: 31607.24 | U101: =IF(C101>0,CONCATENATE("شراء ","","",C101," وثيقة"),IF(G101>0,CONCATENATE("إسترداد ","","",G101," وثيقة"),IF(V101=DATE(YEAR($V$5),COLUMN($L$1)+1,0),CONCATENATE("إعادة تقييم رصيد الوثائق بسعر ","","",$U$37," جنية مصرى"),""))) -> 
M102: =IFERROR(IF(AND(V103="",$C$203>(SUM(S101,E102)-SUM(K102))/(SUM(Q101,C102)-SUM(G102)),V102>=DATE(YEAR($V$5),COLUMN($L$1)+1,0)),((SUM(Q101,C102)-SUM(G102))*$C$203)-((SUM(Q101,C102)-SUM(G102))*(R101)),""),"") ->  | Q102: 90 | R102: 351.1915556 | S102: 31607.24 | U102: =IF(C102>0,CONCATENATE("شراء ","","",C102," وثيقة"),IF(G102>0,CONCATENATE("إسترداد ","","",G102," وثيقة"),IF(V102=DATE(YEAR($V$5),COLUMN($L$1)+1,0),CONCATENATE("إعادة تقييم رصيد الوثائق بسعر ","","",$U$37," جنية مصرى"),""))) -> 
M103: =IFERROR(IF(AND(V104="",$C$203>(SUM(S102,E103)-SUM(K103))/(SUM(Q102,C103)-SUM(G103)),V103>=DATE(YEAR($V$5),COLUMN($L$1)+1,0)),((SUM(Q102,C103)-SUM(G103))*$C$203)-((SUM(Q102,C103)-SUM(G103))*(R102)),""),"") ->  | Q103: 90 | R103: 351.1915556 | S103: 31607.24 | U103: =IF(C103>0,CONCATENATE("شراء ","","",C103," وثيقة"),IF(G103>0,CONCATENATE("إسترداد ","","",G103," وثيقة"),IF(V103=DATE(YEAR($V$5),COLUMN($L$1)+1,0),CONCATENATE("إعادة تقييم رصيد الوثائق بسعر ","","",$U$37," جنية مصرى"),""))) -> 
M104: =IFERROR(IF(AND(V105="",$C$203>(SUM(S103,E104)-SUM(K104))/(SUM(Q103,C104)-SUM(G104)),V104>=DATE(YEAR($V$5),COLUMN($L$1)+1,0)),((SUM(Q103,C104)-SUM(G104))*$C$203)-((SUM(Q103,C104)-SUM(G104))*(R103)),""),"") ->  | Q104: 90 | R104: 351.1915556 | S104: 31607.24 | U104: =IF(C104>0,CONCATENATE("شراء ","","",C104," وثيقة"),IF(G104>0,CONCATENATE("إسترداد ","","",G104," وثيقة"),IF(V104=DATE(YEAR($V$5),COLUMN($L$1)+1,0),CONCATENATE("إعادة تقييم رصيد الوثائق بسعر ","","",$U$37," جنية مصرى"),""))) -> 
M105: =IFERROR(IF(AND(V106="",$C$203>(SUM(S104,E105)-SUM(K105))/(SUM(Q104,C105)-SUM(G105)),V105>=DATE(YEAR($V$5),COLUMN($L$1)+1,0)),((SUM(Q104,C105)-SUM(G105))*$C$203)-((SUM(Q104,C105)-SUM(G105))*(R104)),""),"") ->  | Q105: 90 | R105: 351.1915556 | S105: 31607.24 | U105: =IF(C105>0,CONCATENATE("شراء ","","",C105," وثيقة"),IF(G105>0,CONCATENATE("إسترداد ","","",G105," وثيقة"),IF(V105=DATE(YEAR($V$5),COLUMN($L$1)+1,0),CONCATENATE("إعادة تقييم رصيد الوثائق بسعر ","","",$U$37," جنية مصرى"),""))) -> 
M106: =IFERROR(IF(AND(V107="",$C$203>(SUM(S105,E106)-SUM(K106))/(SUM(Q105,C106)-SUM(G106)),V106>=DATE(YEAR($V$5),COLUMN($L$1)+1,0)),((SUM(Q105,C106)-SUM(G106))*$C$203)-((SUM(Q105,C106)-SUM(G106))*(R105)),""),"") ->  | Q106: 90 | R106: 351.1915556 | S106: 31607.24 | U106: =IF(C106>0,CONCATENATE("شراء ","","",C106," وثيقة"),IF(G106>0,CONCATENATE("إسترداد ","","",G106," وثيقة"),IF(V106=DATE(YEAR($V$5),COLUMN($L$1)+1,0),CONCATENATE("إعادة تقييم رصيد الوثائق بسعر ","","",$U$37," جنية مصرى"),""))) -> 
M107: =IFERROR(IF(AND(V108="",$C$203>(SUM(S106,E107)-SUM(K107))/(SUM(Q106,C107)-SUM(G107)),V107>=DATE(YEAR($V$5),COLUMN($L$1)+1,0)),((SUM(Q106,C107)-SUM(G107))*$C$203)-((SUM(Q106,C107)-SUM(G107))*(R106)),""),"") ->  | Q107: 90 | R107: 351.1915556 | S107: 31607.24 | U107: =IF(C107>0,CONCATENATE("شراء ","","",C107," وثيقة"),IF(G107>0,CONCATENATE("إسترداد ","","",G107," وثيقة"),IF(V107=DATE(YEAR($V$5),COLUMN($L$1)+1,0),CONCATENATE("إعادة تقييم رصيد الوثائق بسعر ","","",$U$37," جنية مصرى"),""))) -> 
M108: =IFERROR(IF(AND(V109="",$C$203>(SUM(S107,E108)-SUM(K108))/(SUM(Q107,C108)-SUM(G108)),V108>=DATE(YEAR($V$5),COLUMN($L$1)+1,0)),((SUM(Q107,C108)-SUM(G108))*$C$203)-((SUM(Q107,C108)-SUM(G108))*(R107)),""),"") ->  | Q108: 90 | R108: 351.1915556 | S108: 31607.24 | U108: =IF(C108>0,CONCATENATE("شراء ","","",C108," وثيقة"),IF(G108>0,CONCATENATE("إسترداد ","","",G108," وثيقة"),IF(V108=DATE(YEAR($V$5),COLUMN($L$1)+1,0),CONCATENATE("إعادة تقييم رصيد الوثائق بسعر ","","",$U$37," جنية مصرى"),""))) -> 
M109: =IFERROR(IF(AND(V110="",$C$203>(SUM(S108,E109)-SUM(K109))/(SUM(Q108,C109)-SUM(G109)),V109>=DATE(YEAR($V$5),COLUMN($L$1)+1,0)),((SUM(Q108,C109)-SUM(G109))*$C$203)-((SUM(Q108,C109)-SUM(G109))*(R108)),""),"") ->  | Q109: 90 | R109: 351.1915556 | S109: 31607.24 | U109: =IF(C109>0,CONCATENATE("شراء ","","",C109," وثيقة"),IF(G109>0,CONCATENATE("إسترداد ","","",G109," وثيقة"),IF(V109=DATE(YEAR($V$5),COLUMN($L$1)+1,0),CONCATENATE("إعادة تقييم رصيد الوثائق بسعر ","","",$U$37," جنية مصرى"),""))) -> 
M110: =IFERROR(IF(AND(V111="",$C$203>(SUM(S109,E110)-SUM(K110))/(SUM(Q109,C110)-SUM(G110)),V110>=DATE(YEAR($V$5),COLUMN($L$1)+1,0)),((SUM(Q109,C110)-SUM(G110))*$C$203)-((SUM(Q109,C110)-SUM(G110))*(R109)),""),"") ->  | Q110: 90 | R110: 351.1915556 | S110: 31607.24 | U110: =IF(C110>0,CONCATENATE("شراء ","","",C110," وثيقة"),IF(G110>0,CONCATENATE("إسترداد ","","",G110," وثيقة"),IF(V110=DATE(YEAR($V$5),COLUMN($L$1)+1,0),CONCATENATE("إعادة تقييم رصيد الوثائق بسعر ","","",$U$37," جنية مصرى"),""))) -> 
M111: =IFERROR(IF(AND(V112="",$C$203>(SUM(S110,E111)-SUM(K111))/(SUM(Q110,C111)-SUM(G111)),V111>=DATE(YEAR($V$5),COLUMN($L$1)+1,0)),((SUM(Q110,C111)-SUM(G111))*$C$203)-((SUM(Q110,C111)-SUM(G111))*(R110)),""),"") ->  | Q111: 90 | R111: 351.1915556 | S111: 31607.24 | U111: =IF(C111>0,CONCATENATE("شراء ","","",C111," وثيقة"),IF(G111>0,CONCATENATE("إسترداد ","","",G111," وثيقة"),IF(V111=DATE(YEAR($V$5),COLUMN($L$1)+1,0),CONCATENATE("إعادة تقييم رصيد الوثائق بسعر ","","",$U$37," جنية مصرى"),""))) -> 
M112: =IFERROR(IF(AND(V113="",$C$203>(SUM(S111,E112)-SUM(K112))/(SUM(Q111,C112)-SUM(G112)),V112>=DATE(YEAR($V$5),COLUMN($L$1)+1,0)),((SUM(Q111,C112)-SUM(G112))*$C$203)-((SUM(Q111,C112)-SUM(G112))*(R111)),""),"") ->  | Q112: 90 | R112: 351.1915556 | S112: 31607.24 | U112: =IF(C112>0,CONCATENATE("شراء ","","",C112," وثيقة"),IF(G112>0,CONCATENATE("إسترداد ","","",G112," وثيقة"),IF(V112=DATE(YEAR($V$5),COLUMN($L$1)+1,0),CONCATENATE("إعادة تقييم رصيد الوثائق بسعر ","","",$U$37," جنية مصرى"),""))) -> 
M113: =IFERROR(IF(AND(V114="",$C$203>(SUM(S112,E113)-SUM(K113))/(SUM(Q112,C113)-SUM(G113)),V113>=DATE(YEAR($V$5),COLUMN($L$1)+1,0)),((SUM(Q112,C113)-SUM(G113))*$C$203)-((SUM(Q112,C113)-SUM(G113))*(R112)),""),"") ->  | Q113: 90 | R113: 351.1915556 | S113: 31607.24 | U113: =IF(C113>0,CONCATENATE("شراء ","","",C113," وثيقة"),IF(G113>0,CONCATENATE("إسترداد ","","",G113," وثيقة"),IF(V113=DATE(YEAR($V$5),COLUMN($L$1)+1,0),CONCATENATE("إعادة تقييم رصيد الوثائق بسعر ","","",$U$37," جنية مصرى"),""))) -> 
M114: =IFERROR(IF(AND(V115="",$C$203>(SUM(S113,E114)-SUM(K114))/(SUM(Q113,C114)-SUM(G114)),V114>=DATE(YEAR($V$5),COLUMN($L$1)+1,0)),((SUM(Q113,C114)-SUM(G114))*$C$203)-((SUM(Q113,C114)-SUM(G114))*(R113)),""),"") ->  | Q114: 90 | R114: 351.1915556 | S114: 31607.24 | U114: =IF(C114>0,CONCATENATE("شراء ","","",C114," وثيقة"),IF(G114>0,CONCATENATE("إسترداد ","","",G114," وثيقة"),IF(V114=DATE(YEAR($V$5),COLUMN($L$1)+1,0),CONCATENATE("إعادة تقييم رصيد الوثائق بسعر ","","",$U$37," جنية مصرى"),""))) -> 
M115: =IFERROR(IF(AND(V116="",$C$203>(SUM(S114,E115)-SUM(K115))/(SUM(Q114,C115)-SUM(G115)),V115>=DATE(YEAR($V$5),COLUMN($L$1)+1,0)),((SUM(Q114,C115)-SUM(G115))*$C$203)-((SUM(Q114,C115)-SUM(G115))*(R114)),""),"") ->  | Q115: 90 | R115: 351.1915556 | S115: 31607.24 | U115: =IF(C115>0,CONCATENATE("شراء ","","",C115," وثيقة"),IF(G115>0,CONCATENATE("إسترداد ","","",G115," وثيقة"),IF(V115=DATE(YEAR($V$5),COLUMN($L$1)+1,0),CONCATENATE("إعادة تقييم رصيد الوثائق بسعر ","","",$U$37," جنية مصرى"),""))) -> 
M116: =IFERROR(IF(AND(V117="",$C$203>(SUM(S115,E116)-SUM(K116))/(SUM(Q115,C116)-SUM(G116)),V116>=DATE(YEAR($V$5),COLUMN($L$1)+1,0)),((SUM(Q115,C116)-SUM(G116))*$C$203)-((SUM(Q115,C116)-SUM(G116))*(R115)),""),"") ->  | Q116: 90 | R116: 351.1915556 | S116: 31607.24 | U116: =IF(C116>0,CONCATENATE("شراء ","","",C116," وثيقة"),IF(G116>0,CONCATENATE("إسترداد ","","",G116," وثيقة"),IF(V116=DATE(YEAR($V$5),COLUMN($L$1)+1,0),CONCATENATE("إعادة تقييم رصيد الوثائق بسعر ","","",$U$37," جنية مصرى"),""))) -> 
M117: =IFERROR(IF(AND(V118="",$C$203>(SUM(S116,E117)-SUM(K117))/(SUM(Q116,C117)-SUM(G117)),V117>=DATE(YEAR($V$5),COLUMN($L$1)+1,0)),((SUM(Q116,C117)-SUM(G117))*$C$203)-((SUM(Q116,C117)-SUM(G117))*(R116)),""),"") ->  | Q117: 90 | R117: 351.1915556 | S117: 31607.24 | U117: =IF(C117>0,CONCATENATE("شراء ","","",C117," وثيقة"),IF(G117>0,CONCATENATE("إسترداد ","","",G117," وثيقة"),IF(V117=DATE(YEAR($V$5),COLUMN($L$1)+1,0),CONCATENATE("إعادة تقييم رصيد الوثائق بسعر ","","",$U$37," جنية مصرى"),""))) -> 
M118: =IFERROR(IF(AND(V119="",$C$203>(SUM(S117,E118)-SUM(K118))/(SUM(Q117,C118)-SUM(G118)),V118>=DATE(YEAR($V$5),COLUMN($L$1)+1,0)),((SUM(Q117,C118)-SUM(G118))*$C$203)-((SUM(Q117,C118)-SUM(G118))*(R117)),""),"") ->  | Q118: 90 | R118: 351.1915556 | S118: 31607.24 | U118: =IF(C118>0,CONCATENATE("شراء ","","",C118," وثيقة"),IF(G118>0,CONCATENATE("إسترداد ","","",G118," وثيقة"),IF(V118=DATE(YEAR($V$5),COLUMN($L$1)+1,0),CONCATENATE("إعادة تقييم رصيد الوثائق بسعر ","","",$U$37," جنية مصرى"),""))) -> 
M119: =IFERROR(IF(AND(V120="",$C$203>(SUM(S118,E119)-SUM(K119))/(SUM(Q118,C119)-SUM(G119)),V119>=DATE(YEAR($V$5),COLUMN($L$1)+1,0)),((SUM(Q118,C119)-SUM(G119))*$C$203)-((SUM(Q118,C119)-SUM(G119))*(R118)),""),"") ->  | Q119: 90 | R119: 351.1915556 | S119: 31607.24 | U119: =IF(C119>0,CONCATENATE("شراء ","","",C119," وثيقة"),IF(G119>0,CONCATENATE("إسترداد ","","",G119," وثيقة"),IF(V119=DATE(YEAR($V$5),COLUMN($L$1)+1,0),CONCATENATE("إعادة تقييم رصيد الوثائق بسعر ","","",$U$37," جنية مصرى"),""))) -> 
M120: =IFERROR(IF(AND(V121="",$C$203>(SUM(S119,E120)-SUM(K120))/(SUM(Q119,C120)-SUM(G120)),V120>=DATE(YEAR($V$5),COLUMN($L$1)+1,0)),((SUM(Q119,C120)-SUM(G120))*$C$203)-((SUM(Q119,C120)-SUM(G120))*(R119)),""),"") ->  | Q120: 90 | R120: 351.1915556 | S120: 31607.24 | U120: =IF(C120>0,CONCATENATE("شراء ","","",C120," وثيقة"),IF(G120>0,CONCATENATE("إسترداد ","","",G120," وثيقة"),IF(V120=DATE(YEAR($V$5),COLUMN($L$1)+1,0),CONCATENATE("إعادة تقييم رصيد الوثائق بسعر ","","",$U$37," جنية مصرى"),""))) -> 
I121: =IF(G121>0,ROUND(G121*H121,2),"") ->  | K121: =IFERROR(IF(G121>0,ROUND(G121*R120,2),""),"") ->  | L121: =IFERROR(IF(G121>0,ROUND(I121-K121,2),""),"") ->  | M121: =IFERROR(IF(AND(V122="",$C$203>(SUM(S120,E121)-SUM(K121))/(SUM(Q120,C121)-SUM(G121)),V121>=DATE(YEAR($V$5),COLUMN($L$1)+1,0)),((SUM(Q120,C121)-SUM(G121))*$C$203)-((SUM(Q120,C121)-SUM(G121))*(R120)),""),"") ->  | O121: =IF(H121>0,ROUND(H121-R120,2),"") ->  | Q121: =Q120+C121-G121 -> 90 | R121: =IF(Q121>0,ROUND(S121/Q121,100),0) -> 351.1915556 | S121: =ROUND(SUM(S120,E121,M121)-SUM(K121),100) -> 31607.24 | U121: =IF(C121>0,CONCATENATE("شراء ","","",C121," وثيقة"),IF(G121>0,CONCATENATE("إسترداد ","","",G121," وثيقة"),IF(V121=DATE(YEAR($V$5),COLUMN($L$1)+1,0),CONCATENATE("إعادة تقييم رصيد الوثائق بسعر ","","",$U$37," جنية مصرى"),""))) -> 
M122: =IFERROR(IF(AND(V123="",$C$203>(SUM(S121,E122)-SUM(K122))/(SUM(Q121,C122)-SUM(G122)),V122>=DATE(YEAR($V$5),COLUMN($L$1)+1,0)),((SUM(Q121,C122)-SUM(G122))*$C$203)-((SUM(Q121,C122)-SUM(G122))*(R121)),""),"") ->  | Q122: 90 | R122: 351.1915556 | S122: 31607.24 | U122: =IF(C122>0,CONCATENATE("شراء ","","",C122," وثيقة"),IF(G122>0,CONCATENATE("إسترداد ","","",G122," وثيقة"),IF(V122=DATE(YEAR($V$5),COLUMN($L$1)+1,0),CONCATENATE("إعادة تقييم رصيد الوثائق بسعر ","","",$U$37," جنية مصرى"),""))) -> 
M123: =IFERROR(IF(AND(V124="",$C$203>(SUM(S122,E123)-SUM(K123))/(SUM(Q122,C123)-SUM(G123)),V123>=DATE(YEAR($V$5),COLUMN($L$1)+1,0)),((SUM(Q122,C123)-SUM(G123))*$C$203)-((SUM(Q122,C123)-SUM(G123))*(R122)),""),"") ->  | Q123: 90 | R123: 351.1915556 | S123: 31607.24 | U123: =IF(C123>0,CONCATENATE("شراء ","","",C123," وثيقة"),IF(G123>0,CONCATENATE("إسترداد ","","",G123," وثيقة"),IF(V123=DATE(YEAR($V$5),COLUMN($L$1)+1,0),CONCATENATE("إعادة تقييم رصيد الوثائق بسعر ","","",$U$37," جنية مصرى"),""))) -> 
M124: =IFERROR(IF(AND(V125="",$C$203>(SUM(S123,E124)-SUM(K124))/(SUM(Q123,C124)-SUM(G124)),V124>=DATE(YEAR($V$5),COLUMN($L$1)+1,0)),((SUM(Q123,C124)-SUM(G124))*$C$203)-((SUM(Q123,C124)-SUM(G124))*(R123)),""),"") ->  | Q124: 90 | R124: 351.1915556 | S124: 31607.24 | U124: =IF(C124>0,CONCATENATE("شراء ","","",C124," وثيقة"),IF(G124>0,CONCATENATE("إسترداد ","","",G124," وثيقة"),IF(V124=DATE(YEAR($V$5),COLUMN($L$1)+1,0),CONCATENATE("إعادة تقييم رصيد الوثائق بسعر ","","",$U$37," جنية مصرى"),""))) -> 
M125: =IFERROR(IF(AND(V126="",$C$203>(SUM(S124,E125)-SUM(K125))/(SUM(Q124,C125)-SUM(G125)),V125>=DATE(YEAR($V$5),COLUMN($L$1)+1,0)),((SUM(Q124,C125)-SUM(G125))*$C$203)-((SUM(Q124,C125)-SUM(G125))*(R124)),""),"") ->  | Q125: 90 | R125: 351.1915556 | S125: 31607.24 | U125: =IF(C125>0,CONCATENATE("شراء ","","",C125," وثيقة"),IF(G125>0,CONCATENATE("إسترداد ","","",G125," وثيقة"),IF(V125=DATE(YEAR($V$5),COLUMN($L$1)+1,0),CONCATENATE("إعادة تقييم رصيد الوثائق بسعر ","","",$U$37," جنية مصرى"),""))) -> 
M126: =IFERROR(IF(AND(V127="",$C$203>(SUM(S125,E126)-SUM(K126))/(SUM(Q125,C126)-SUM(G126)),V126>=DATE(YEAR($V$5),COLUMN($L$1)+1,0)),((SUM(Q125,C126)-SUM(G126))*$C$203)-((SUM(Q125,C126)-SUM(G126))*(R125)),""),"") ->  | Q126: 90 | R126: 351.1915556 | S126: 31607.24 | U126: =IF(C126>0,CONCATENATE("شراء ","","",C126," وثيقة"),IF(G126>0,CONCATENATE("إسترداد ","","",G126," وثيقة"),IF(V126=DATE(YEAR($V$5),COLUMN($L$1)+1,0),CONCATENATE("إعادة تقييم رصيد الوثائق بسعر ","","",$U$37," جنية مصرى"),""))) -> 
M127: =IFERROR(IF(AND(V128="",$C$203>(SUM(S126,E127)-SUM(K127))/(SUM(Q126,C127)-SUM(G127)),V127>=DATE(YEAR($V$5),COLUMN($L$1)+1,0)),((SUM(Q126,C127)-SUM(G127))*$C$203)-((SUM(Q126,C127)-SUM(G127))*(R126)),""),"") ->  | Q127: 90 | R127: 351.1915556 | S127: 31607.24 | U127: =IF(C127>0,CONCATENATE("شراء ","","",C127," وثيقة"),IF(G127>0,CONCATENATE("إسترداد ","","",G127," وثيقة"),IF(V127=DATE(YEAR($V$5),COLUMN($L$1)+1,0),CONCATENATE("إعادة تقييم رصيد الوثائق بسعر ","","",$U$37," جنية مصرى"),""))) -> 
M128: =IFERROR(IF(AND(V129="",$C$203>(SUM(S127,E128)-SUM(K128))/(SUM(Q127,C128)-SUM(G128)),V128>=DATE(YEAR($V$5),COLUMN($L$1)+1,0)),((SUM(Q127,C128)-SUM(G128))*$C$203)-((SUM(Q127,C128)-SUM(G128))*(R127)),""),"") ->  | Q128: 90 | R128: 351.1915556 | S128: 31607.24 | U128: =IF(C128>0,CONCATENATE("شراء ","","",C128," وثيقة"),IF(G128>0,CONCATENATE("إسترداد ","","",G128," وثيقة"),IF(V128=DATE(YEAR($V$5),COLUMN($L$1)+1,0),CONCATENATE("إعادة تقييم رصيد الوثائق بسعر ","","",$U$37," جنية مصرى"),""))) -> 
M129: =IFERROR(IF(AND(V130="",$C$203>(SUM(S128,E129)-SUM(K129))/(SUM(Q128,C129)-SUM(G129)),V129>=DATE(YEAR($V$5),COLUMN($L$1)+1,0)),((SUM(Q128,C129)-SUM(G129))*$C$203)-((SUM(Q128,C129)-SUM(G129))*(R128)),""),"") ->  | Q129: 90 | R129: 351.1915556 | S129: 31607.24 | U129: =IF(C129>0,CONCATENATE("شراء ","","",C129," وثيقة"),IF(G129>0,CONCATENATE("إسترداد ","","",G129," وثيقة"),IF(V129=DATE(YEAR($V$5),COLUMN($L$1)+1,0),CONCATENATE("إعادة تقييم رصيد الوثائق بسعر ","","",$U$37," جنية مصرى"),""))) -> 
M130: =IFERROR(IF(AND(V131="",$C$203>(SUM(S129,E130)-SUM(K130))/(SUM(Q129,C130)-SUM(G130)),V130>=DATE(YEAR($V$5),COLUMN($L$1)+1,0)),((SUM(Q129,C130)-SUM(G130))*$C$203)-((SUM(Q129,C130)-SUM(G130))*(R129)),""),"") ->  | Q130: 90 | R130: 351.1915556 | S130: 31607.24 | U130: =IF(C130>0,CONCATENATE("شراء ","","",C130," وثيقة"),IF(G130>0,CONCATENATE("إسترداد ","","",G130," وثيقة"),IF(V130=DATE(YEAR($V$5),COLUMN($L$1)+1,0),CONCATENATE("إعادة تقييم رصيد الوثائق بسعر ","","",$U$37," جنية مصرى"),""))) -> 
M131: =IFERROR(IF(AND(V132="",$C$203>(SUM(S130,E131)-SUM(K131))/(SUM(Q130,C131)-SUM(G131)),V131>=DATE(YEAR($V$5),COLUMN($L$1)+1,0)),((SUM(Q130,C131)-SUM(G131))*$C$203)-((SUM(Q130,C131)-SUM(G131))*(R130)),""),"") ->  | Q131: 90 | R131: 351.1915556 | S131: 31607.24 | U131: =IF(C131>0,CONCATENATE("شراء ","","",C131," وثيقة"),IF(G131>0,CONCATENATE("إسترداد ","","",G131," وثيقة"),IF(V131=DATE(YEAR($V$5),COLUMN($L$1)+1,0),CONCATENATE("إعادة تقييم رصيد الوثائق بسعر ","","",$U$37," جنية مصرى"),""))) -> 
M132: =IFERROR(IF(AND(V133="",$C$203>(SUM(S131,E132)-SUM(K132))/(SUM(Q131,C132)-SUM(G132)),V132>=DATE(YEAR($V$5),COLUMN($L$1)+1,0)),((SUM(Q131,C132)-SUM(G132))*$C$203)-((SUM(Q131,C132)-SUM(G132))*(R131)),""),"") ->  | Q132: 90 | R132: 351.1915556 | S132: 31607.24 | U132: =IF(C132>0,CONCATENATE("شراء ","","",C132," وثيقة"),IF(G132>0,CONCATENATE("إسترداد ","","",G132," وثيقة"),IF(V132=DATE(YEAR($V$5),COLUMN($L$1)+1,0),CONCATENATE("إعادة تقييم رصيد الوثائق بسعر ","","",$U$37," جنية مصرى"),""))) -> 
M133: =IFERROR(IF(AND(V134="",$C$203>(SUM(S132,E133)-SUM(K133))/(SUM(Q132,C133)-SUM(G133)),V133>=DATE(YEAR($V$5),COLUMN($L$1)+1,0)),((SUM(Q132,C133)-SUM(G133))*$C$203)-((SUM(Q132,C133)-SUM(G133))*(R132)),""),"") ->  | Q133: 90 | R133: 351.1915556 | S133: 31607.24 | U133: =IF(C133>0,CONCATENATE("شراء ","","",C133," وثيقة"),IF(G133>0,CONCATENATE("إسترداد ","","",G133," وثيقة"),IF(V133=DATE(YEAR($V$5),COLUMN($L$1)+1,0),CONCATENATE("إعادة تقييم رصيد الوثائق بسعر ","","",$U$37," جنية مصرى"),""))) -> 
M134: =IFERROR(IF(AND(V135="",$C$203>(SUM(S133,E134)-SUM(K134))/(SUM(Q133,C134)-SUM(G134)),V134>=DATE(YEAR($V$5),COLUMN($L$1)+1,0)),((SUM(Q133,C134)-SUM(G134))*$C$203)-((SUM(Q133,C134)-SUM(G134))*(R133)),""),"") ->  | Q134: 90 | R134: 351.1915556 | S134: 31607.24 | U134: =IF(C134>0,CONCATENATE("شراء ","","",C134," وثيقة"),IF(G134>0,CONCATENATE("إسترداد ","","",G134," وثيقة"),IF(V134=DATE(YEAR($V$5),COLUMN($L$1)+1,0),CONCATENATE("إعادة تقييم رصيد الوثائق بسعر ","","",$U$37," جنية مصرى"),""))) ->  | X134: =IF($V134="","",IFERROR(IF(MONTH($V134)=MONTH($V133),$X133+1,1),1)) -> 
M135: =IFERROR(IF(AND(V136="",$C$203>(SUM(S134,E135)-SUM(K135))/(SUM(Q134,C135)-SUM(G135)),V135>=DATE(YEAR($V$5),COLUMN($L$1)+1,0)),((SUM(Q134,C135)-SUM(G135))*$C$203)-((SUM(Q134,C135)-SUM(G135))*(R134)),""),"") ->  | Q135: 90 | R135: 351.1915556 | S135: 31607.24 | U135: =IF(C135>0,CONCATENATE("شراء ","","",C135," وثيقة"),IF(G135>0,CONCATENATE("إسترداد ","","",G135," وثيقة"),IF(V135=DATE(YEAR($V$5),COLUMN($L$1)+1,0),CONCATENATE("إعادة تقييم رصيد الوثائق بسعر ","","",$U$37," جنية مصرى"),""))) -> 
M136: =IFERROR(IF(AND(V137="",$C$203>(SUM(S135,E136)-SUM(K136))/(SUM(Q135,C136)-SUM(G136)),V136>=DATE(YEAR($V$5),COLUMN($L$1)+1,0)),((SUM(Q135,C136)-SUM(G136))*$C$203)-((SUM(Q135,C136)-SUM(G136))*(R135)),""),"") ->  | Q136: 90 | R136: 351.1915556 | S136: 31607.24 | U136: =IF(C136>0,CONCATENATE("شراء ","","",C136," وثيقة"),IF(G136>0,CONCATENATE("إسترداد ","","",G136," وثيقة"),IF(V136=DATE(YEAR($V$5),COLUMN($L$1)+1,0),CONCATENATE("إعادة تقييم رصيد الوثائق بسعر ","","",$U$37," جنية مصرى"),""))) -> 
M137: =IFERROR(IF(AND(V138="",$C$203>(SUM(S136,E137)-SUM(K137))/(SUM(Q136,C137)-SUM(G137)),V137>=DATE(YEAR($V$5),COLUMN($L$1)+1,0)),((SUM(Q136,C137)-SUM(G137))*$C$203)-((SUM(Q136,C137)-SUM(G137))*(R136)),""),"") ->  | Q137: 90 | R137: 351.1915556 | S137: 31607.24 | U137: =IF(C137>0,CONCATENATE("شراء ","","",C137," وثيقة"),IF(G137>0,CONCATENATE("إسترداد ","","",G137," وثيقة"),IF(V137=DATE(YEAR($V$5),COLUMN($L$1)+1,0),CONCATENATE("إعادة تقييم رصيد الوثائق بسعر ","","",$U$37," جنية مصرى"),""))) -> 
M138: =IFERROR(IF(AND(V139="",$C$203>(SUM(S137,E138)-SUM(K138))/(SUM(Q137,C138)-SUM(G138)),V138>=DATE(YEAR($V$5),COLUMN($L$1)+1,0)),((SUM(Q137,C138)-SUM(G138))*$C$203)-((SUM(Q137,C138)-SUM(G138))*(R137)),""),"") ->  | Q138: 90 | R138: 351.1915556 | S138: 31607.24 | U138: =IF(C138>0,CONCATENATE("شراء ","","",C138," وثيقة"),IF(G138>0,CONCATENATE("إسترداد ","","",G138," وثيقة"),IF(V138=DATE(YEAR($V$5),COLUMN($L$1)+1,0),CONCATENATE("إعادة تقييم رصيد الوثائق بسعر ","","",$U$37," جنية مصرى"),""))) -> 
M139: =IFERROR(IF(AND(V140="",$C$203>(SUM(S138,E139)-SUM(K139))/(SUM(Q138,C139)-SUM(G139)),V139>=DATE(YEAR($V$5),COLUMN($L$1)+1,0)),((SUM(Q138,C139)-SUM(G139))*$C$203)-((SUM(Q138,C139)-SUM(G139))*(R138)),""),"") ->  | Q139: 90 | R139: 351.1915556 | S139: 31607.24 | U139: =IF(C139>0,CONCATENATE("شراء ","","",C139," وثيقة"),IF(G139>0,CONCATENATE("إسترداد ","","",G139," وثيقة"),IF(V139=DATE(YEAR($V$5),COLUMN($L$1)+1,0),CONCATENATE("إعادة تقييم رصيد الوثائق بسعر ","","",$U$37," جنية مصرى"),""))) -> 
M140: =IFERROR(IF(AND(V141="",$C$203>(SUM(S139,E140)-SUM(K140))/(SUM(Q139,C140)-SUM(G140)),V140>=DATE(YEAR($V$5),COLUMN($L$1)+1,0)),((SUM(Q139,C140)-SUM(G140))*$C$203)-((SUM(Q139,C140)-SUM(G140))*(R139)),""),"") ->  | Q140: 90 | R140: 351.1915556 | S140: 31607.24 | U140: =IF(C140>0,CONCATENATE("شراء ","","",C140," وثيقة"),IF(G140>0,CONCATENATE("إسترداد ","","",G140," وثيقة"),IF(V140=DATE(YEAR($V$5),COLUMN($L$1)+1,0),CONCATENATE("إعادة تقييم رصيد الوثائق بسعر ","","",$U$37," جنية مصرى"),""))) -> 
M141: =IFERROR(IF(AND(V142="",$C$203>(SUM(S140,E141)-SUM(K141))/(SUM(Q140,C141)-SUM(G141)),V141>=DATE(YEAR($V$5),COLUMN($L$1)+1,0)),((SUM(Q140,C141)-SUM(G141))*$C$203)-((SUM(Q140,C141)-SUM(G141))*(R140)),""),"") ->  | Q141: 90 | R141: 351.1915556 | S141: 31607.24 | U141: =IF(C141>0,CONCATENATE("شراء ","","",C141," وثيقة"),IF(G141>0,CONCATENATE("إسترداد ","","",G141," وثيقة"),IF(V141=DATE(YEAR($V$5),COLUMN($L$1)+1,0),CONCATENATE("إعادة تقييم رصيد الوثائق بسعر ","","",$U$37," جنية مصرى"),""))) -> 
M142: =IFERROR(IF(AND(V143="",$C$203>(SUM(S141,E142)-SUM(K142))/(SUM(Q141,C142)-SUM(G142)),V142>=DATE(YEAR($V$5),COLUMN($L$1)+1,0)),((SUM(Q141,C142)-SUM(G142))*$C$203)-((SUM(Q141,C142)-SUM(G142))*(R141)),""),"") ->  | Q142: 90 | R142: 351.1915556 | S142: 31607.24 | U142: =IF(C142>0,CONCATENATE("شراء ","","",C142," وثيقة"),IF(G142>0,CONCATENATE("إسترداد ","","",G142," وثيقة"),IF(V142=DATE(YEAR($V$5),COLUMN($L$1)+1,0),CONCATENATE("إعادة تقييم رصيد الوثائق بسعر ","","",$U$37," جنية مصرى"),""))) -> 
M143: =IFERROR(IF(AND(V144="",$C$203>(SUM(S142,E143)-SUM(K143))/(SUM(Q142,C143)-SUM(G143)),V143>=DATE(YEAR($V$5),COLUMN($L$1)+1,0)),((SUM(Q142,C143)-SUM(G143))*$C$203)-((SUM(Q142,C143)-SUM(G143))*(R142)),""),"") ->  | Q143: 90 | R143: 351.1915556 | S143: 31607.24 | U143: =IF(C143>0,CONCATENATE("شراء ","","",C143," وثيقة"),IF(G143>0,CONCATENATE("إسترداد ","","",G143," وثيقة"),IF(V143=DATE(YEAR($V$5),COLUMN($L$1)+1,0),CONCATENATE("إعادة تقييم رصيد الوثائق بسعر ","","",$U$37," جنية مصرى"),""))) -> 
M144: =IFERROR(IF(AND(V145="",$C$203>(SUM(S143,E144)-SUM(K144))/(SUM(Q143,C144)-SUM(G144)),V144>=DATE(YEAR($V$5),COLUMN($L$1)+1,0)),((SUM(Q143,C144)-SUM(G144))*$C$203)-((SUM(Q143,C144)-SUM(G144))*(R143)),""),"") ->  | Q144: 90 | R144: 351.1915556 | S144: 31607.24 | U144: =IF(C144>0,CONCATENATE("شراء ","","",C144," وثيقة"),IF(G144>0,CONCATENATE("إسترداد ","","",G144," وثيقة"),IF(V144=DATE(YEAR($V$5),COLUMN($L$1)+1,0),CONCATENATE("إعادة تقييم رصيد الوثائق بسعر ","","",$U$37," جنية مصرى"),""))) -> 
M145: =IFERROR(IF(AND(V146="",$C$203>(SUM(S144,E145)-SUM(K145))/(SUM(Q144,C145)-SUM(G145)),V145>=DATE(YEAR($V$5),COLUMN($L$1)+1,0)),((SUM(Q144,C145)-SUM(G145))*$C$203)-((SUM(Q144,C145)-SUM(G145))*(R144)),""),"") ->  | Q145: 90 | R145: 351.1915556 | S145: 31607.24 | U145: =IF(C145>0,CONCATENATE("شراء ","","",C145," وثيقة"),IF(G145>0,CONCATENATE("إسترداد ","","",G145," وثيقة"),IF(V145=DATE(YEAR($V$5),COLUMN($L$1)+1,0),CONCATENATE("إعادة تقييم رصيد الوثائق بسعر ","","",$U$37," جنية مصرى"),""))) -> 
M146: =IFERROR(IF(AND(V147="",$C$203>(SUM(S145,E146)-SUM(K146))/(SUM(Q145,C146)-SUM(G146)),V146>=DATE(YEAR($V$5),COLUMN($L$1)+1,0)),((SUM(Q145,C146)-SUM(G146))*$C$203)-((SUM(Q145,C146)-SUM(G146))*(R145)),""),"") ->  | Q146: 90 | R146: 351.1915556 | S146: 31607.24 | U146: =IF(C146>0,CONCATENATE("شراء ","","",C146," وثيقة"),IF(G146>0,CONCATENATE("إسترداد ","","",G146," وثيقة"),IF(V146=DATE(YEAR($V$5),COLUMN($L$1)+1,0),CONCATENATE("إعادة تقييم رصيد الوثائق بسعر ","","",$U$37," جنية مصرى"),""))) -> 
M147: =IFERROR(IF(AND(V148="",$C$203>(SUM(S146,E147)-SUM(K147))/(SUM(Q146,C147)-SUM(G147)),V147>=DATE(YEAR($V$5),COLUMN($L$1)+1,0)),((SUM(Q146,C147)-SUM(G147))*$C$203)-((SUM(Q146,C147)-SUM(G147))*(R146)),""),"") ->  | Q147: 90 | R147: 351.1915556 | S147: 31607.24 | U147: =IF(C147>0,CONCATENATE("شراء ","","",C147," وثيقة"),IF(G147>0,CONCATENATE("إسترداد ","","",G147," وثيقة"),IF(V147=DATE(YEAR($V$5),COLUMN($L$1)+1,0),CONCATENATE("إعادة تقييم رصيد الوثائق بسعر ","","",$U$37," جنية مصرى"),""))) -> 
M148: =IFERROR(IF(AND(V149="",$C$203>(SUM(S147,E148)-SUM(K148))/(SUM(Q147,C148)-SUM(G148)),V148>=DATE(YEAR($V$5),COLUMN($L$1)+1,0)),((SUM(Q147,C148)-SUM(G148))*$C$203)-((SUM(Q147,C148)-SUM(G148))*(R147)),""),"") ->  | Q148: 90 | R148: 351.1915556 | S148: 31607.24 | U148: =IF(C148>0,CONCATENATE("شراء ","","",C148," وثيقة"),IF(G148>0,CONCATENATE("إسترداد ","","",G148," وثيقة"),IF(V148=DATE(YEAR($V$5),COLUMN($L$1)+1,0),CONCATENATE("إعادة تقييم رصيد الوثائق بسعر ","","",$U$37," جنية مصرى"),""))) -> 
M149: =IFERROR(IF(AND(V150="",$C$203>(SUM(S148,E149)-SUM(K149))/(SUM(Q148,C149)-SUM(G149)),V149>=DATE(YEAR($V$5),COLUMN($L$1)+1,0)),((SUM(Q148,C149)-SUM(G149))*$C$203)-((SUM(Q148,C149)-SUM(G149))*(R148)),""),"") ->  | Q149: 90 | R149: 351.1915556 | S149: 31607.24 | U149: =IF(C149>0,CONCATENATE("شراء ","","",C149," وثيقة"),IF(G149>0,CONCATENATE("إسترداد ","","",G149," وثيقة"),IF(V149=DATE(YEAR($V$5),COLUMN($L$1)+1,0),CONCATENATE("إعادة تقييم رصيد الوثائق بسعر ","","",$U$37," جنية مصرى"),""))) -> 
M150: =IFERROR(IF(AND(V151="",$C$203>(SUM(S149,E150)-SUM(K150))/(SUM(Q149,C150)-SUM(G150)),V150>=DATE(YEAR($V$5),COLUMN($L$1)+1,0)),((SUM(Q149,C150)-SUM(G150))*$C$203)-((SUM(Q149,C150)-SUM(G150))*(R149)),""),"") ->  | Q150: 90 | R150: 351.1915556 | S150: 31607.24 | U150: =IF(C150>0,CONCATENATE("شراء ","","",C150," وثيقة"),IF(G150>0,CONCATENATE("إسترداد ","","",G150," وثيقة"),IF(V150=DATE(YEAR($V$5),COLUMN($L$1)+1,0),CONCATENATE("إعادة تقييم رصيد الوثائق بسعر ","","",$U$37," جنية مصرى"),""))) -> 
M151: =IFERROR(IF(AND(V152="",$C$203>(SUM(S150,E151)-SUM(K151))/(SUM(Q150,C151)-SUM(G151)),V151>=DATE(YEAR($V$5),COLUMN($L$1)+1,0)),((SUM(Q150,C151)-SUM(G151))*$C$203)-((SUM(Q150,C151)-SUM(G151))*(R150)),""),"") ->  | Q151: 90 | R151: 351.1915556 | S151: 31607.24 | U151: =IF(C151>0,CONCATENATE("شراء ","","",C151," وثيقة"),IF(G151>0,CONCATENATE("إسترداد ","","",G151," وثيقة"),IF(V151=DATE(YEAR($V$5),COLUMN($L$1)+1,0),CONCATENATE("إعادة تقييم رصيد الوثائق بسعر ","","",$U$37," جنية مصرى"),""))) -> 
I152: =IF(G152>0,ROUND(G152*H152,2),"") ->  | K152: =IFERROR(IF(G152>0,ROUND(G152*R151,2),""),"") ->  | L152: =IFERROR(IF(G152>0,ROUND(I152-K152,2),""),"") ->  | M152: =IFERROR(IF(AND(V153="",$C$203>(SUM(S151,E152)-SUM(K152))/(SUM(Q151,C152)-SUM(G152)),V152>=DATE(YEAR($V$5),COLUMN($L$1)+1,0)),((SUM(Q151,C152)-SUM(G152))*$C$203)-((SUM(Q151,C152)-SUM(G152))*(R151)),""),"") ->  | O152: =IF(H152>0,ROUND(H152-R151,2),"") ->  | Q152: =Q151+C152-G152 -> 90 | R152: =IF(Q152>0,ROUND(S152/Q152,100),0) -> 351.1915556 | S152: =ROUND(SUM(S151,E152,M152)-SUM(K152),100) -> 31607.24 | U152: =IF(C152>0,CONCATENATE("شراء ","","",C152," وثيقة"),IF(G152>0,CONCATENATE("إسترداد ","","",G152," وثيقة"),IF(V152=DATE(YEAR($V$5),COLUMN($L$1)+1,0),CONCATENATE("إعادة تقييم رصيد الوثائق بسعر ","","",$U$37," جنية مصرى"),""))) -> 
M153: =IFERROR(IF(AND(V154="",$C$203>(SUM(S152,E153)-SUM(K153))/(SUM(Q152,C153)-SUM(G153)),V153>=DATE(YEAR($V$5),COLUMN($L$1)+1,0)),((SUM(Q152,C153)-SUM(G153))*$C$203)-((SUM(Q152,C153)-SUM(G153))*(R152)),""),"") ->  | Q153: 90 | R153: 351.1915556 | S153: 31607.24 | U153: =IF(C153>0,CONCATENATE("شراء ","","",C153," وثيقة"),IF(G153>0,CONCATENATE("إسترداد ","","",G153," وثيقة"),IF(V153=DATE(YEAR($V$5),COLUMN($L$1)+1,0),CONCATENATE("إعادة تقييم رصيد الوثائق بسعر ","","",$U$37," جنية مصرى"),""))) -> 
M154: =IFERROR(IF(AND(V155="",$C$203>(SUM(S153,E154)-SUM(K154))/(SUM(Q153,C154)-SUM(G154)),V154>=DATE(YEAR($V$5),COLUMN($L$1)+1,0)),((SUM(Q153,C154)-SUM(G154))*$C$203)-((SUM(Q153,C154)-SUM(G154))*(R153)),""),"") ->  | Q154: 90 | R154: 351.1915556 | S154: 31607.24 | U154: =IF(C154>0,CONCATENATE("شراء ","","",C154," وثيقة"),IF(G154>0,CONCATENATE("إسترداد ","","",G154," وثيقة"),IF(V154=DATE(YEAR($V$5),COLUMN($L$1)+1,0),CONCATENATE("إعادة تقييم رصيد الوثائق بسعر ","","",$U$37," جنية مصرى"),""))) -> 
M155: =IFERROR(IF(AND(V156="",$C$203>(SUM(S154,E155)-SUM(K155))/(SUM(Q154,C155)-SUM(G155)),V155>=DATE(YEAR($V$5),COLUMN($L$1)+1,0)),((SUM(Q154,C155)-SUM(G155))*$C$203)-((SUM(Q154,C155)-SUM(G155))*(R154)),""),"") ->  | Q155: 90 | R155: 351.1915556 | S155: 31607.24 | U155: =IF(C155>0,CONCATENATE("شراء ","","",C155," وثيقة"),IF(G155>0,CONCATENATE("إسترداد ","","",G155," وثيقة"),IF(V155=DATE(YEAR($V$5),COLUMN($L$1)+1,0),CONCATENATE("إعادة تقييم رصيد الوثائق بسعر ","","",$U$37," جنية مصرى"),""))) -> 
M156: =IFERROR(IF(AND(V157="",$C$203>(SUM(S155,E156)-SUM(K156))/(SUM(Q155,C156)-SUM(G156)),V156>=DATE(YEAR($V$5),COLUMN($L$1)+1,0)),((SUM(Q155,C156)-SUM(G156))*$C$203)-((SUM(Q155,C156)-SUM(G156))*(R155)),""),"") ->  | Q156: 90 | R156: 351.1915556 | S156: 31607.24 | U156: =IF(C156>0,CONCATENATE("شراء ","","",C156," وثيقة"),IF(G156>0,CONCATENATE("إسترداد ","","",G156," وثيقة"),IF(V156=DATE(YEAR($V$5),COLUMN($L$1)+1,0),CONCATENATE("إعادة تقييم رصيد الوثائق بسعر ","","",$U$37," جنية مصرى"),""))) -> 
M157: =IFERROR(IF(AND(V158="",$C$203>(SUM(S156,E157)-SUM(K157))/(SUM(Q156,C157)-SUM(G157)),V157>=DATE(YEAR($V$5),COLUMN($L$1)+1,0)),((SUM(Q156,C157)-SUM(G157))*$C$203)-((SUM(Q156,C157)-SUM(G157))*(R156)),""),"") ->  | Q157: 90 | R157: 351.1915556 | S157: 31607.24 | U157: =IF(C157>0,CONCATENATE("شراء ","","",C157," وثيقة"),IF(G157>0,CONCATENATE("إسترداد ","","",G157," وثيقة"),IF(V157=DATE(YEAR($V$5),COLUMN($L$1)+1,0),CONCATENATE("إعادة تقييم رصيد الوثائق بسعر ","","",$U$37," جنية مصرى"),""))) -> 
M158: =IFERROR(IF(AND(V159="",$C$203>(SUM(S157,E158)-SUM(K158))/(SUM(Q157,C158)-SUM(G158)),V158>=DATE(YEAR($V$5),COLUMN($L$1)+1,0)),((SUM(Q157,C158)-SUM(G158))*$C$203)-((SUM(Q157,C158)-SUM(G158))*(R157)),""),"") ->  | Q158: 90 | R158: 351.1915556 | S158: 31607.24 | U158: =IF(C158>0,CONCATENATE("شراء ","","",C158," وثيقة"),IF(G158>0,CONCATENATE("إسترداد ","","",G158," وثيقة"),IF(V158=DATE(YEAR($V$5),COLUMN($L$1)+1,0),CONCATENATE("إعادة تقييم رصيد الوثائق بسعر ","","",$U$37," جنية مصرى"),""))) -> 
M159: =IFERROR(IF(AND(V160="",$C$203>(SUM(S158,E159)-SUM(K159))/(SUM(Q158,C159)-SUM(G159)),V159>=DATE(YEAR($V$5),COLUMN($L$1)+1,0)),((SUM(Q158,C159)-SUM(G159))*$C$203)-((SUM(Q158,C159)-SUM(G159))*(R158)),""),"") ->  | Q159: 90 | R159: 351.1915556 | S159: 31607.24 | U159: =IF(C159>0,CONCATENATE("شراء ","","",C159," وثيقة"),IF(G159>0,CONCATENATE("إسترداد ","","",G159," وثيقة"),IF(V159=DATE(YEAR($V$5),COLUMN($L$1)+1,0),CONCATENATE("إعادة تقييم رصيد الوثائق بسعر ","","",$U$37," جنية مصرى"),""))) -> 
M160: =IFERROR(IF(AND(V161="",$C$203>(SUM(S159,E160)-SUM(K160))/(SUM(Q159,C160)-SUM(G160)),V160>=DATE(YEAR($V$5),COLUMN($L$1)+1,0)),((SUM(Q159,C160)-SUM(G160))*$C$203)-((SUM(Q159,C160)-SUM(G160))*(R159)),""),"") ->  | Q160: 90 | R160: 351.1915556 | S160: 31607.24 | U160: =IF(C160>0,CONCATENATE("شراء ","","",C160," وثيقة"),IF(G160>0,CONCATENATE("إسترداد ","","",G160," وثيقة"),IF(V160=DATE(YEAR($V$5),COLUMN($L$1)+1,0),CONCATENATE("إعادة تقييم رصيد الوثائق بسعر ","","",$U$37," جنية مصرى"),""))) -> 
M161: =IFERROR(IF(AND(V162="",$C$203>(SUM(S160,E161)-SUM(K161))/(SUM(Q160,C161)-SUM(G161)),V161>=DATE(YEAR($V$5),COLUMN($L$1)+1,0)),((SUM(Q160,C161)-SUM(G161))*$C$203)-((SUM(Q160,C161)-SUM(G161))*(R160)),""),"") ->  | Q161: 90 | R161: 351.1915556 | S161: 31607.24 | U161: =IF(C161>0,CONCATENATE("شراء ","","",C161," وثيقة"),IF(G161>0,CONCATENATE("إسترداد ","","",G161," وثيقة"),IF(V161=DATE(YEAR($V$5),COLUMN($L$1)+1,0),CONCATENATE("إعادة تقييم رصيد الوثائق بسعر ","","",$U$37," جنية مصرى"),""))) -> 
M162: =IFERROR(IF(AND(V163="",$C$203>(SUM(S161,E162)-SUM(K162))/(SUM(Q161,C162)-SUM(G162)),V162>=DATE(YEAR($V$5),COLUMN($L$1)+1,0)),((SUM(Q161,C162)-SUM(G162))*$C$203)-((SUM(Q161,C162)-SUM(G162))*(R161)),""),"") ->  | Q162: 90 | R162: 351.1915556 | S162: 31607.24 | U162: =IF(C162>0,CONCATENATE("شراء ","","",C162," وثيقة"),IF(G162>0,CONCATENATE("إسترداد ","","",G162," وثيقة"),IF(V162=DATE(YEAR($V$5),COLUMN($L$1)+1,0),CONCATENATE("إعادة تقييم رصيد الوثائق بسعر ","","",$U$37," جنية مصرى"),""))) -> 
M163: =IFERROR(IF(AND(V164="",$C$203>(SUM(S162,E163)-SUM(K163))/(SUM(Q162,C163)-SUM(G163)),V163>=DATE(YEAR($V$5),COLUMN($L$1)+1,0)),((SUM(Q162,C163)-SUM(G163))*$C$203)-((SUM(Q162,C163)-SUM(G163))*(R162)),""),"") ->  | Q163: 90 | R163: 351.1915556 | S163: 31607.24 | U163: =IF(C163>0,CONCATENATE("شراء ","","",C163," وثيقة"),IF(G163>0,CONCATENATE("إسترداد ","","",G163," وثيقة"),IF(V163=DATE(YEAR($V$5),COLUMN($L$1)+1,0),CONCATENATE("إعادة تقييم رصيد الوثائق بسعر ","","",$U$37," جنية مصرى"),""))) -> 
M164: =IFERROR(IF(AND(V165="",$C$203>(SUM(S163,E164)-SUM(K164))/(SUM(Q163,C164)-SUM(G164)),V164>=DATE(YEAR($V$5),COLUMN($L$1)+1,0)),((SUM(Q163,C164)-SUM(G164))*$C$203)-((SUM(Q163,C164)-SUM(G164))*(R163)),""),"") ->  | Q164: 90 | R164: 351.1915556 | S164: 31607.24 | U164: =IF(C164>0,CONCATENATE("شراء ","","",C164," وثيقة"),IF(G164>0,CONCATENATE("إسترداد ","","",G164," وثيقة"),IF(V164=DATE(YEAR($V$5),COLUMN($L$1)+1,0),CONCATENATE("إعادة تقييم رصيد الوثائق بسعر ","","",$U$37," جنية مصرى"),""))) -> 
M165: =IFERROR(IF(AND(V166="",$C$203>(SUM(S164,E165)-SUM(K165))/(SUM(Q164,C165)-SUM(G165)),V165>=DATE(YEAR($V$5),COLUMN($L$1)+1,0)),((SUM(Q164,C165)-SUM(G165))*$C$203)-((SUM(Q164,C165)-SUM(G165))*(R164)),""),"") ->  | Q165: 90 | R165: 351.1915556 | S165: 31607.24 | U165: =IF(C165>0,CONCATENATE("شراء ","","",C165," وثيقة"),IF(G165>0,CONCATENATE("إسترداد ","","",G165," وثيقة"),IF(V165=DATE(YEAR($V$5),COLUMN($L$1)+1,0),CONCATENATE("إعادة تقييم رصيد الوثائق بسعر ","","",$U$37," جنية مصرى"),""))) -> 
M166: =IFERROR(IF(AND(V167="",$C$203>(SUM(S165,E166)-SUM(K166))/(SUM(Q165,C166)-SUM(G166)),V166>=DATE(YEAR($V$5),COLUMN($L$1)+1,0)),((SUM(Q165,C166)-SUM(G166))*$C$203)-((SUM(Q165,C166)-SUM(G166))*(R165)),""),"") ->  | Q166: 90 | R166: 351.1915556 | S166: 31607.24 | U166: =IF(C166>0,CONCATENATE("شراء ","","",C166," وثيقة"),IF(G166>0,CONCATENATE("إسترداد ","","",G166," وثيقة"),IF(V166=DATE(YEAR($V$5),COLUMN($L$1)+1,0),CONCATENATE("إعادة تقييم رصيد الوثائق بسعر ","","",$U$37," جنية مصرى"),""))) -> 
M167: =IFERROR(IF(AND(V168="",$C$203>(SUM(S166,E167)-SUM(K167))/(SUM(Q166,C167)-SUM(G167)),V167>=DATE(YEAR($V$5),COLUMN($L$1)+1,0)),((SUM(Q166,C167)-SUM(G167))*$C$203)-((SUM(Q166,C167)-SUM(G167))*(R166)),""),"") ->  | Q167: 90 | R167: 351.1915556 | S167: 31607.24 | U167: =IF(C167>0,CONCATENATE("شراء ","","",C167," وثيقة"),IF(G167>0,CONCATENATE("إسترداد ","","",G167," وثيقة"),IF(V167=DATE(YEAR($V$5),COLUMN($L$1)+1,0),CONCATENATE("إعادة تقييم رصيد الوثائق بسعر ","","",$U$37," جنية مصرى"),""))) -> 
M168: =IFERROR(IF(AND(V169="",$C$203>(SUM(S167,E168)-SUM(K168))/(SUM(Q167,C168)-SUM(G168)),V168>=DATE(YEAR($V$5),COLUMN($L$1)+1,0)),((SUM(Q167,C168)-SUM(G168))*$C$203)-((SUM(Q167,C168)-SUM(G168))*(R167)),""),"") ->  | Q168: 90 | R168: 351.1915556 | S168: 31607.24 | U168: =IF(C168>0,CONCATENATE("شراء ","","",C168," وثيقة"),IF(G168>0,CONCATENATE("إسترداد ","","",G168," وثيقة"),IF(V168=DATE(YEAR($V$5),COLUMN($L$1)+1,0),CONCATENATE("إعادة تقييم رصيد الوثائق بسعر ","","",$U$37," جنية مصرى"),""))) -> 
M169: =IFERROR(IF(AND(V170="",$C$203>(SUM(S168,E169)-SUM(K169))/(SUM(Q168,C169)-SUM(G169)),V169>=DATE(YEAR($V$5),COLUMN($L$1)+1,0)),((SUM(Q168,C169)-SUM(G169))*$C$203)-((SUM(Q168,C169)-SUM(G169))*(R168)),""),"") ->  | Q169: 90 | R169: 351.1915556 | S169: 31607.24 | U169: =IF(C169>0,CONCATENATE("شراء ","","",C169," وثيقة"),IF(G169>0,CONCATENATE("إسترداد ","","",G169," وثيقة"),IF(V169=DATE(YEAR($V$5),COLUMN($L$1)+1,0),CONCATENATE("إعادة تقييم رصيد الوثائق بسعر ","","",$U$37," جنية مصرى"),""))) -> 
M170: =IFERROR(IF(AND(V171="",$C$203>(SUM(S169,E170)-SUM(K170))/(SUM(Q169,C170)-SUM(G170)),V170>=DATE(YEAR($V$5),COLUMN($L$1)+1,0)),((SUM(Q169,C170)-SUM(G170))*$C$203)-((SUM(Q169,C170)-SUM(G170))*(R169)),""),"") ->  | Q170: 90 | R170: 351.1915556 | S170: 31607.24 | U170: =IF(C170>0,CONCATENATE("شراء ","","",C170," وثيقة"),IF(G170>0,CONCATENATE("إسترداد ","","",G170," وثيقة"),IF(V170=DATE(YEAR($V$5),COLUMN($L$1)+1,0),CONCATENATE("إعادة تقييم رصيد الوثائق بسعر ","","",$U$37," جنية مصرى"),""))) -> 
M171: =IFERROR(IF(AND(V172="",$C$203>(SUM(S170,E171)-SUM(K171))/(SUM(Q170,C171)-SUM(G171)),V171>=DATE(YEAR($V$5),COLUMN($L$1)+1,0)),((SUM(Q170,C171)-SUM(G171))*$C$203)-((SUM(Q170,C171)-SUM(G171))*(R170)),""),"") ->  | Q171: 90 | R171: 351.1915556 | S171: 31607.24 | U171: =IF(C171>0,CONCATENATE("شراء ","","",C171," وثيقة"),IF(G171>0,CONCATENATE("إسترداد ","","",G171," وثيقة"),IF(V171=DATE(YEAR($V$5),COLUMN($L$1)+1,0),CONCATENATE("إعادة تقييم رصيد الوثائق بسعر ","","",$U$37," جنية مصرى"),""))) -> 
M172: =IFERROR(IF(AND(V173="",$C$203>(SUM(S171,E172)-SUM(K172))/(SUM(Q171,C172)-SUM(G172)),V172>=DATE(YEAR($V$5),COLUMN($L$1)+1,0)),((SUM(Q171,C172)-SUM(G172))*$C$203)-((SUM(Q171,C172)-SUM(G172))*(R171)),""),"") ->  | Q172: 90 | R172: 351.1915556 | S172: 31607.24 | U172: =IF(C172>0,CONCATENATE("شراء ","","",C172," وثيقة"),IF(G172>0,CONCATENATE("إسترداد ","","",G172," وثيقة"),IF(V172=DATE(YEAR($V$5),COLUMN($L$1)+1,0),CONCATENATE("إعادة تقييم رصيد الوثائق بسعر ","","",$U$37," جنية مصرى"),""))) -> 
M173: =IFERROR(IF(AND(V174="",$C$203>(SUM(S172,E173)-SUM(K173))/(SUM(Q172,C173)-SUM(G173)),V173>=DATE(YEAR($V$5),COLUMN($L$1)+1,0)),((SUM(Q172,C173)-SUM(G173))*$C$203)-((SUM(Q172,C173)-SUM(G173))*(R172)),""),"") ->  | Q173: 90 | R173: 351.1915556 | S173: 31607.24 | U173: =IF(C173>0,CONCATENATE("شراء ","","",C173," وثيقة"),IF(G173>0,CONCATENATE("إسترداد ","","",G173," وثيقة"),IF(V173=DATE(YEAR($V$5),COLUMN($L$1)+1,0),CONCATENATE("إعادة تقييم رصيد الوثائق بسعر ","","",$U$37," جنية مصرى"),""))) -> 
M174: =IFERROR(IF(AND(V175="",$C$203>(SUM(S173,E174)-SUM(K174))/(SUM(Q173,C174)-SUM(G174)),V174>=DATE(YEAR($V$5),COLUMN($L$1)+1,0)),((SUM(Q173,C174)-SUM(G174))*$C$203)-((SUM(Q173,C174)-SUM(G174))*(R173)),""),"") ->  | Q174: 90 | R174: 351.1915556 | S174: 31607.24 | U174: =IF(C174>0,CONCATENATE("شراء ","","",C174," وثيقة"),IF(G174>0,CONCATENATE("إسترداد ","","",G174," وثيقة"),IF(V174=DATE(YEAR($V$5),COLUMN($L$1)+1,0),CONCATENATE("إعادة تقييم رصيد الوثائق بسعر ","","",$U$37," جنية مصرى"),""))) -> 
M175: =IFERROR(IF(AND(V176="",$C$203>(SUM(S174,E175)-SUM(K175))/(SUM(Q174,C175)-SUM(G175)),V175>=DATE(YEAR($V$5),COLUMN($L$1)+1,0)),((SUM(Q174,C175)-SUM(G175))*$C$203)-((SUM(Q174,C175)-SUM(G175))*(R174)),""),"") ->  | Q175: 90 | R175: 351.1915556 | S175: 31607.24 | U175: =IF(C175>0,CONCATENATE("شراء ","","",C175," وثيقة"),IF(G175>0,CONCATENATE("إسترداد ","","",G175," وثيقة"),IF(V175=DATE(YEAR($V$5),COLUMN($L$1)+1,0),CONCATENATE("إعادة تقييم رصيد الوثائق بسعر ","","",$U$37," جنية مصرى"),""))) -> 
M176: =IFERROR(IF(AND(V177="",$C$203>(SUM(S175,E176)-SUM(K176))/(SUM(Q175,C176)-SUM(G176)),V176>=DATE(YEAR($V$5),COLUMN($L$1)+1,0)),((SUM(Q175,C176)-SUM(G176))*$C$203)-((SUM(Q175,C176)-SUM(G176))*(R175)),""),"") ->  | Q176: 90 | R176: 351.1915556 | S176: 31607.24 | U176: =IF(C176>0,CONCATENATE("شراء ","","",C176," وثيقة"),IF(G176>0,CONCATENATE("إسترداد ","","",G176," وثيقة"),IF(V176=DATE(YEAR($V$5),COLUMN($L$1)+1,0),CONCATENATE("إعادة تقييم رصيد الوثائق بسعر ","","",$U$37," جنية مصرى"),""))) -> 
M177: =IFERROR(IF(AND(V178="",$C$203>(SUM(S176,E177)-SUM(K177))/(SUM(Q176,C177)-SUM(G177)),V177>=DATE(YEAR($V$5),COLUMN($L$1)+1,0)),((SUM(Q176,C177)-SUM(G177))*$C$203)-((SUM(Q176,C177)-SUM(G177))*(R176)),""),"") ->  | Q177: 90 | R177: 351.1915556 | S177: 31607.24 | U177: =IF(C177>0,CONCATENATE("شراء ","","",C177," وثيقة"),IF(G177>0,CONCATENATE("إسترداد ","","",G177," وثيقة"),IF(V177=DATE(YEAR($V$5),COLUMN($L$1)+1,0),CONCATENATE("إعادة تقييم رصيد الوثائق بسعر ","","",$U$37," جنية مصرى"),""))) -> 
M178: =IFERROR(IF(AND(V179="",$C$203>(SUM(S177,E178)-SUM(K178))/(SUM(Q177,C178)-SUM(G178)),V178>=DATE(YEAR($V$5),COLUMN($L$1)+1,0)),((SUM(Q177,C178)-SUM(G178))*$C$203)-((SUM(Q177,C178)-SUM(G178))*(R177)),""),"") ->  | Q178: 90 | R178: 351.1915556 | S178: 31607.24 | U178: =IF(C178>0,CONCATENATE("شراء ","","",C178," وثيقة"),IF(G178>0,CONCATENATE("إسترداد ","","",G178," وثيقة"),IF(V178=DATE(YEAR($V$5),COLUMN($L$1)+1,0),CONCATENATE("إعادة تقييم رصيد الوثائق بسعر ","","",$U$37," جنية مصرى"),""))) -> 
M179: =IFERROR(IF(AND(V180="",$C$203>(SUM(S178,E179)-SUM(K179))/(SUM(Q178,C179)-SUM(G179)),V179>=DATE(YEAR($V$5),COLUMN($L$1)+1,0)),((SUM(Q178,C179)-SUM(G179))*$C$203)-((SUM(Q178,C179)-SUM(G179))*(R178)),""),"") ->  | Q179: 90 | R179: 351.1915556 | S179: 31607.24 | U179: =IF(C179>0,CONCATENATE("شراء ","","",C179," وثيقة"),IF(G179>0,CONCATENATE("إسترداد ","","",G179," وثيقة"),IF(V179=DATE(YEAR($V$5),COLUMN($L$1)+1,0),CONCATENATE("إعادة تقييم رصيد الوثائق بسعر ","","",$U$37," جنية مصرى"),""))) -> 
M180: =IFERROR(IF(AND(V181="",$C$203>(SUM(S179,E180)-SUM(K180))/(SUM(Q179,C180)-SUM(G180)),V180>=DATE(YEAR($V$5),COLUMN($L$1)+1,0)),((SUM(Q179,C180)-SUM(G180))*$C$203)-((SUM(Q179,C180)-SUM(G180))*(R179)),""),"") ->  | Q180: 90 | R180: 351.1915556 | S180: 31607.24 | U180: =IF(C180>0,CONCATENATE("شراء ","","",C180," وثيقة"),IF(G180>0,CONCATENATE("إسترداد ","","",G180," وثيقة"),IF(V180=DATE(YEAR($V$5),COLUMN($L$1)+1,0),CONCATENATE("إعادة تقييم رصيد الوثائق بسعر ","","",$U$37," جنية مصرى"),""))) -> 
M181: =IFERROR(IF(AND(V182="",$C$203>(SUM(S180,E181)-SUM(K181))/(SUM(Q180,C181)-SUM(G181)),V181>=DATE(YEAR($V$5),COLUMN($L$1)+1,0)),((SUM(Q180,C181)-SUM(G181))*$C$203)-((SUM(Q180,C181)-SUM(G181))*(R180)),""),"") ->  | Q181: 90 | R181: 351.1915556 | S181: 31607.24 | U181: =IF(C181>0,CONCATENATE("شراء ","","",C181," وثيقة"),IF(G181>0,CONCATENATE("إسترداد ","","",G181," وثيقة"),IF(V181=DATE(YEAR($V$5),COLUMN($L$1)+1,0),CONCATENATE("إعادة تقييم رصيد الوثائق بسعر ","","",$U$37," جنية مصرى"),""))) -> 
M182: =IFERROR(IF(AND(V183="",$C$203>(SUM(S181,E182)-SUM(K182))/(SUM(Q181,C182)-SUM(G182)),V182>=DATE(YEAR($V$5),COLUMN($L$1)+1,0)),((SUM(Q181,C182)-SUM(G182))*$C$203)-((SUM(Q181,C182)-SUM(G182))*(R181)),""),"") ->  | Q182: 90 | R182: 351.1915556 | S182: 31607.24 | U182: =IF(C182>0,CONCATENATE("شراء ","","",C182," وثيقة"),IF(G182>0,CONCATENATE("إسترداد ","","",G182," وثيقة"),IF(V182=DATE(YEAR($V$5),COLUMN($L$1)+1,0),CONCATENATE("إعادة تقييم رصيد الوثائق بسعر ","","",$U$37," جنية مصرى"),""))) -> 
M183: =IFERROR(IF(AND(V184="",$C$203>(SUM(S182,E183)-SUM(K183))/(SUM(Q182,C183)-SUM(G183)),V183>=DATE(YEAR($V$5),COLUMN($L$1)+1,0)),((SUM(Q182,C183)-SUM(G183))*$C$203)-((SUM(Q182,C183)-SUM(G183))*(R182)),""),"") ->  | Q183: 90 | R183: 351.1915556 | S183: 31607.24 | U183: =IF(C183>0,CONCATENATE("شراء ","","",C183," وثيقة"),IF(G183>0,CONCATENATE("إسترداد ","","",G183," وثيقة"),IF(V183=DATE(YEAR($V$5),COLUMN($L$1)+1,0),CONCATENATE("إعادة تقييم رصيد الوثائق بسعر ","","",$U$37," جنية مصرى"),""))) -> 
M184: =IFERROR(IF(AND(V185="",$C$203>(SUM(S183,E184)-SUM(K184))/(SUM(Q183,C184)-SUM(G184)),V184>=DATE(YEAR($V$5),COLUMN($L$1)+1,0)),((SUM(Q183,C184)-SUM(G184))*$C$203)-((SUM(Q183,C184)-SUM(G184))*(R183)),""),"") ->  | Q184: 90 | R184: 351.1915556 | S184: 31607.24 | U184: =IF(C184>0,CONCATENATE("شراء ","","",C184," وثيقة"),IF(G184>0,CONCATENATE("إسترداد ","","",G184," وثيقة"),IF(V184=DATE(YEAR($V$5),COLUMN($L$1)+1,0),CONCATENATE("إعادة تقييم رصيد الوثائق بسعر ","","",$U$37," جنية مصرى"),""))) -> 
M185: =IFERROR(IF(AND(V186="",$C$203>(SUM(S184,E185)-SUM(K185))/(SUM(Q184,C185)-SUM(G185)),V185>=DATE(YEAR($V$5),COLUMN($L$1)+1,0)),((SUM(Q184,C185)-SUM(G185))*$C$203)-((SUM(Q184,C185)-SUM(G185))*(R184)),""),"") ->  | Q185: 90 | R185: 351.1915556 | S185: 31607.24 | U185: =IF(C185>0,CONCATENATE("شراء ","","",C185," وثيقة"),IF(G185>0,CONCATENATE("إسترداد ","","",G185," وثيقة"),IF(V185=DATE(YEAR($V$5),COLUMN($L$1)+1,0),CONCATENATE("إعادة تقييم رصيد الوثائق بسعر ","","",$U$37," جنية مصرى"),""))) -> 
M186: =IFERROR(IF(AND(V187="",$C$203>(SUM(S185,E186)-SUM(K186))/(SUM(Q185,C186)-SUM(G186)),V186>=DATE(YEAR($V$5),COLUMN($L$1)+1,0)),((SUM(Q185,C186)-SUM(G186))*$C$203)-((SUM(Q185,C186)-SUM(G186))*(R185)),""),"") ->  | Q186: 90 | R186: 351.1915556 | S186: 31607.24 | U186: =IF(C186>0,CONCATENATE("شراء ","","",C186," وثيقة"),IF(G186>0,CONCATENATE("إسترداد ","","",G186," وثيقة"),IF(V186=DATE(YEAR($V$5),COLUMN($L$1)+1,0),CONCATENATE("إعادة تقييم رصيد الوثائق بسعر ","","",$U$37," جنية مصرى"),""))) -> 
M187: =IFERROR(IF(AND(V188="",$C$203>(SUM(S186,E187)-SUM(K187))/(SUM(Q186,C187)-SUM(G187)),V187>=DATE(YEAR($V$5),COLUMN($L$1)+1,0)),((SUM(Q186,C187)-SUM(G187))*$C$203)-((SUM(Q186,C187)-SUM(G187))*(R186)),""),"") ->  | Q187: 90 | R187: 351.1915556 | S187: 31607.24 | U187: =IF(C187>0,CONCATENATE("شراء ","","",C187," وثيقة"),IF(G187>0,CONCATENATE("إسترداد ","","",G187," وثيقة"),IF(V187=DATE(YEAR($V$5),COLUMN($L$1)+1,0),CONCATENATE("إعادة تقييم رصيد الوثائق بسعر ","","",$U$37," جنية مصرى"),""))) -> 
M188: =IFERROR(IF(AND(V189="",$C$203>(SUM(S187,E188)-SUM(K188))/(SUM(Q187,C188)-SUM(G188)),V188>=DATE(YEAR($V$5),COLUMN($L$1)+1,0)),((SUM(Q187,C188)-SUM(G188))*$C$203)-((SUM(Q187,C188)-SUM(G188))*(R187)),""),"") ->  | Q188: 90 | R188: 351.1915556 | S188: 31607.24 | U188: =IF(C188>0,CONCATENATE("شراء ","","",C188," وثيقة"),IF(G188>0,CONCATENATE("إسترداد ","","",G188," وثيقة"),IF(V188=DATE(YEAR($V$5),COLUMN($L$1)+1,0),CONCATENATE("إعادة تقييم رصيد الوثائق بسعر ","","",$U$37," جنية مصرى"),""))) -> 
M189: =IFERROR(IF(AND(V190="",$C$203>(SUM(S188,E189)-SUM(K189))/(SUM(Q188,C189)-SUM(G189)),V189>=DATE(YEAR($V$5),COLUMN($L$1)+1,0)),((SUM(Q188,C189)-SUM(G189))*$C$203)-((SUM(Q188,C189)-SUM(G189))*(R188)),""),"") ->  | Q189: 90 | R189: 351.1915556 | S189: 31607.24 | U189: =IF(C189>0,CONCATENATE("شراء ","","",C189," وثيقة"),IF(G189>0,CONCATENATE("إسترداد ","","",G189," وثيقة"),IF(V189=DATE(YEAR($V$5),COLUMN($L$1)+1,0),CONCATENATE("إعادة تقييم رصيد الوثائق بسعر ","","",$U$37," جنية مصرى"),""))) -> 
K190: =IFERROR(IF(G190>0,ROUND(G190*R189,2),""),"") ->  | M190: =IFERROR(IF(AND(V191="",$C$203>(SUM(S189,E190)-SUM(K190))/(SUM(Q189,C190)-SUM(G190)),V190>=DATE(YEAR($V$5),COLUMN($L$1)+1,0)),((SUM(Q189,C190)-SUM(G190))*$C$203)-((SUM(Q189,C190)-SUM(G190))*(R189)),""),"") ->  | Q190: 90 | R190: 351.1915556 | S190: 31607.24 | U190: =IF(C190>0,CONCATENATE("شراء ","","",C190," وثيقة"),IF(G190>0,CONCATENATE("إسترداد ","","",G190," وثيقة"),IF(V190=DATE(YEAR($V$5),COLUMN($L$1)+1,0),CONCATENATE("إعادة تقييم رصيد الوثائق بسعر ","","",$U$37," جنية مصرى"),""))) -> 
M191: =IFERROR(IF(AND(V192="",$C$203>(SUM(S190,E191)-SUM(K191))/(SUM(Q190,C191)-SUM(G191)),V191>=DATE(YEAR($V$5),COLUMN($L$1)+1,0)),((SUM(Q190,C191)-SUM(G191))*$C$203)-((SUM(Q190,C191)-SUM(G191))*(R190)),""),"") ->  | Q191: 90 | R191: 351.1915556 | S191: 31607.24 | U191: =IF(C191>0,CONCATENATE("شراء ","","",C191," وثيقة"),IF(G191>0,CONCATENATE("إسترداد ","","",G191," وثيقة"),IF(V191=DATE(YEAR($V$5),COLUMN($L$1)+1,0),CONCATENATE("إعادة تقييم رصيد الوثائق بسعر ","","",$U$37," جنية مصرى"),""))) -> 
M192: =IFERROR(IF(AND(V193="",$C$203>(SUM(S191,E192)-SUM(K192))/(SUM(Q191,C192)-SUM(G192)),V192>=DATE(YEAR($V$5),COLUMN($L$1)+1,0)),((SUM(Q191,C192)-SUM(G192))*$C$203)-((SUM(Q191,C192)-SUM(G192))*(R191)),""),"") ->  | Q192: 90 | R192: 351.1915556 | S192: 31607.24 | U192: =IF(C192>0,CONCATENATE("شراء ","","",C192," وثيقة"),IF(G192>0,CONCATENATE("إسترداد ","","",G192," وثيقة"),IF(V192=DATE(YEAR($V$5),COLUMN($L$1)+1,0),CONCATENATE("إعادة تقييم رصيد الوثائق بسعر ","","",$U$37," جنية مصرى"),""))) -> 
I193: =IF(G193>0,ROUND(G193*H193,2),"") ->  | M193: =IFERROR(IF(AND(V194="",$C$203>(SUM(S192,E193)-SUM(K193))/(SUM(Q192,C193)-SUM(G193)),V193>=DATE(YEAR($V$5),COLUMN($L$1)+1,0)),((SUM(Q192,C193)-SUM(G193))*$C$203)-((SUM(Q192,C193)-SUM(G193))*(R192)),""),"") ->  | Q193: 90 | R193: 351.1915556 | S193: 31607.24 | U193: =IF(C193>0,CONCATENATE("شراء ","","",C193," وثيقة"),IF(G193>0,CONCATENATE("إسترداد ","","",G193," وثيقة"),IF(V193=DATE(YEAR($V$5),COLUMN($L$1)+1,0),CONCATENATE("إعادة تقييم رصيد الوثائق بسعر ","","",$U$37," جنية مصرى"),""))) -> 
M194: =IFERROR(IF(AND(V195="",$C$203>(SUM(S193,E194)-SUM(K194))/(SUM(Q193,C194)-SUM(G194)),V194>=DATE(YEAR($V$5),COLUMN($L$1)+1,0)),((SUM(Q193,C194)-SUM(G194))*$C$203)-((SUM(Q193,C194)-SUM(G194))*(R193)),""),"") ->  | Q194: 90 | R194: 351.1915556 | S194: 31607.24 | U194: =IF(C194>0,CONCATENATE("شراء ","","",C194," وثيقة"),IF(G194>0,CONCATENATE("إسترداد ","","",G194," وثيقة"),IF(V194=DATE(YEAR($V$5),COLUMN($L$1)+1,0),CONCATENATE("إعادة تقييم رصيد الوثائق بسعر ","","",$U$37," جنية مصرى"),""))) -> 
M195: =IFERROR(IF(AND(V196="",$C$203>(SUM(S194,E195)-SUM(K195))/(SUM(Q194,C195)-SUM(G195)),V195>=DATE(YEAR($V$5),COLUMN($L$1)+1,0)),((SUM(Q194,C195)-SUM(G195))*$C$203)-((SUM(Q194,C195)-SUM(G195))*(R194)),""),"") ->  | Q195: 90 | R195: 351.1915556 | S195: 31607.24 | U195: =IF(C195>0,CONCATENATE("شراء ","","",C195," وثيقة"),IF(G195>0,CONCATENATE("إسترداد ","","",G195," وثيقة"),IF(V195=DATE(YEAR($V$5),COLUMN($L$1)+1,0),CONCATENATE("إعادة تقييم رصيد الوثائق بسعر ","","",$U$37," جنية مصرى"),""))) -> 
M196: =IFERROR(IF(AND(V197="",$C$203>(SUM(S195,E196)-SUM(K196))/(SUM(Q195,C196)-SUM(G196)),V196>=DATE(YEAR($V$5),COLUMN($L$1)+1,0)),((SUM(Q195,C196)-SUM(G196))*$C$203)-((SUM(Q195,C196)-SUM(G196))*(R195)),""),"") ->  | Q196: 90 | R196: 351.1915556 | S196: 31607.24 | U196: =IF(C196>0,CONCATENATE("شراء ","","",C196," وثيقة"),IF(G196>0,CONCATENATE("إسترداد ","","",G196," وثيقة"),IF(V196=DATE(YEAR($V$5),COLUMN($L$1)+1,0),CONCATENATE("إعادة تقييم رصيد الوثائق بسعر ","","",$U$37," جنية مصرى"),""))) -> 
M197: =IFERROR(IF(AND(V198="",$C$203>(SUM(S196,E197)-SUM(K197))/(SUM(Q196,C197)-SUM(G197)),V197>=DATE(YEAR($V$5),COLUMN($L$1)+1,0)),((SUM(Q196,C197)-SUM(G197))*$C$203)-((SUM(Q196,C197)-SUM(G197))*(R196)),""),"") ->  | Q197: 90 | R197: 351.1915556 | S197: 31607.24 | U197: =IF(C197>0,CONCATENATE("شراء ","","",C197," وثيقة"),IF(G197>0,CONCATENATE("إسترداد ","","",G197," وثيقة"),IF(V197=DATE(YEAR($V$5),COLUMN($L$1)+1,0),CONCATENATE("إعادة تقييم رصيد الوثائق بسعر ","","",$U$37," جنية مصرى"),""))) -> 
M198: =IFERROR(IF(AND(V199="",$C$203>(SUM(S197,E198)-SUM(K198))/(SUM(Q197,C198)-SUM(G198)),V198>=DATE(YEAR($V$5),COLUMN($L$1)+1,0)),((SUM(Q197,C198)-SUM(G198))*$C$203)-((SUM(Q197,C198)-SUM(G198))*(R197)),""),"") ->  | Q198: =Q197+C198-G198 -> 90 | R198: =IF(Q198>0,ROUND(S198/Q198,100),0) -> 351.1915556 | S198: 31607.24 | U198: =IF(C198>0,CONCATENATE("شراء ","","",C198," وثيقة"),IF(G198>0,CONCATENATE("إسترداد ","","",G198," وثيقة"),IF(V198=DATE(YEAR($V$5),COLUMN($L$1)+1,0),CONCATENATE("إعادة تقييم رصيد الوثائق بسعر ","","",$U$37," جنية مصرى"),""))) ->  | X198: =IF($V198="","",IFERROR(IF(MONTH($V198)=MONTH($V197),$X197+1,1),1)) -> 
A200: =MAX(A5:A198) -> 92 | C200: =SUM(C6:C198) -> 985 | E200: =SUM(E6:E198) -> 329449.49 | G200: =SUM(G6:G198) -> 975 | I200: =SUM(I6:I198) -> 325058.12 | K200: =SUM(K5:K198) -> 323376.57 | L200: =SUM(L5:L198) -> 1681.55 | M200: =SUM(M5:M198) -> 0 | Q200: =C5+C200-G200 -> 90 | R200: =IF(Q200>0,S200/Q200,0) -> 351.1915556 | S200: =ROUND(E5+E200-K200+M200,2) -> 31607.24 | U200: رصيد آخر المدة | V200: =IF(TODAY()-V5+1>DATE(YEAR(V5),12,31)-DATE(YEAR(V5)-1,12,31),V5-1+DATE(YEAR(V5),12,31)-DATE(YEAR(V5)-1,12,31),TODAY()) -> 2019-10-15 | X200: =MAX(X5:X198) -> 14
C202: قيمة الوثيقة | G202: التغير اليومى فى سعر الوثيقة | K202: التغير فى سعر الوثيقة | O202: متوسط الربح اليومى | U202: متوسط الربح الشهرى
A203: X | C203: 355.062 | G203: =K203/IF(TODAY()>(DATE(YEAR($V$5),COLUMN(L1)+1,0)),DATE(YEAR($V$200),12,31)-DATE(YEAR($V$200)-1,12,31),INT(TODAY()-$V$5+1)) -> 0.12459375 | K203: =$C$203-$R$5 -> 35.883 | O203: =$C$209/IF(TODAY()-$V$5+1<DATE(YEAR($V$5),12,31)-DATE(YEAR($V$5)-1,12,31),TODAY()-$V$5+1,DATE(YEAR($V$5),12,31)-DATE(YEAR($V$5)-1,12,31)) -> 7.048229167 | U203: =$C$209/(IF(TODAY()-$V$5+1<DATE(YEAR($V$5),12,31)-DATE(YEAR($V$5)-1,12,31),TODAY()-$V$5+1,DATE(YEAR($V$5),12,31)-DATE(YEAR($V$5)-1,12,31))/30.4166666) -> 214.3836367
C205: معدل العائد | G205: القيمة السوقية | K205: القيمة الدفترية - السوقية | O205: التغير فى سعر الوثيقة نهاية العام | U205: قيمة الوثيقة نهاية العام
... 5 more rows
